{"text_format":"1","workbook":"xlsx","n_sheets":6,"sheets":["SolCompra","ResumenCompra","Catalogo","ListasAutomaticas","Listas","solCotizacionCSVPorduc"],"not_rendered":{"charts":0,"images":0,"macros":1,"external_links":0,"defined_names":24,"comments":0,"pivot_tables":0},"unopened":[],"bounds":{"document_bytes":16777216,"sheet_cells":100000,"rows_first":2000,"rows_last":500,"rows_between":2000,"halvings":0,"cell_chars":16384,"cell_head_chars":4096},"cells_cut":0,"cells_raw":0,"read":"whole","date_system":"1900"}

{"sheet":"SolCompra","index":0,"n_rows":40,"n_cols":15,"rows_kept":40,"cut":false,"hidden":false,"merged":[[12,0,12,2],[12,3,12,8],[14,0,14,12],[16,4,16,5],[22,2,22,3],[22,9,22,12],[20,0,20,12],[22,5,24,8],[24,9,24,12],[39,4,39,6],[39,7,39,8],[0,0,1,12],[2,0,2,12],[4,0,4,12],[6,0,6,2],[6,3,6,8],[6,10,6,12],[8,0,8,2],[8,3,8,8],[8,10,8,12],[10,0,10,2],[10,3,10,8],[10,10,10,11],[36,1,36,6],[36,7,36,8],[31,0,31,12],[33,0,34,12],[26,4,26,8],[37,1,37,6],[37,7,37,8],[27,4,27,8]]}
["Carrito - Compra por catálogo"]
[]
["Instrumento de Agregación de Demanda para la adquisición y prestación de productos y servicios ArcGIS"]
["Versión: 35","2018-11-07"]
["Información de la Entidad Compradora"]
[]
["Nombre de la Entidad:",null,null,null,null,null,null,null,null,"NIT:"]
[]
["Dirección de la Entidad:",null,null,null,null,null,null,null,null,"Municipio:"]
[]
["Nombre del Comprador:",null,null,null,null,null,null,null,null,"Teléfono:"]
[]
["Correo del comprador:"]
[]
["Fechas estimadas"]
[]
[null,null,null,"Fecha de generación de la Compra:"]
[]
[]
[]
[" Artículos Solicitud de Cotización"]
[]
[null,null,"Filas a agregar o eliminar:",null,null,"NOTA: La categoría de programa educativo requiere de anexar el acto administrativo que lo acredite como universidad, museo o biblioteca."]
[]
[null,null,1]
[]
["Item","Referencia","Categoría","Familia","Nombre",null,null,null,null,"Cantidad","Unidad","precio",null,null,"llave"]
[1]
[]
[]
[]
["Gravámenes adicionales (estampillas)"]
[]
["Si los hay, indique los gravámenes adicionales (estampilllas) a los que está sujeta la Orden de Compra. Son gravámens adiconales por ejemplo; estampillas y demás impuestos territoriales. Los impuestos como ICA y retención en la fuente NO son gravámenes adicionales."]
[]
[]
["No.","Descripción ",null,null,null,null,null,"% Gravámen"]
[1]
[]
[null,null,null,null,"Total Gravámenes adicionales",null,null,{"$f":"SUM(H38:I38)","v":0}]

{"sheet":"ResumenCompra","index":1,"n_rows":35,"n_cols":18,"rows_kept":35,"cut":false,"hidden":false,"merged":[[34,4,34,6],[34,7,34,8],[32,1,32,6],[32,7,32,8],[26,0,26,14],[31,7,31,8],[31,1,31,6],[28,0,29,12],[16,4,16,8],[17,4,17,8],[8,0,8,14],[6,0,6,2],[6,3,6,8],[10,6,10,7],[14,10,14,12],[12,0,12,14],[0,0,1,14],[2,0,2,14],[4,0,4,14],[6,10,6,12],[10,3,10,5]]}
["Resumen de la compra por catálogo",null,null,null,null,null,null,null,null,null,null,null,null,null,null,null,null,{"$f":"H35","v":0}]
[]
["Instrumento de Agregación de Demanda para la adquisición y prestación de productos y servicios ArcGIS"]
[]
["Información de la Entidad Compradora"]
[]
["Nombre de la Entidad:",null,null,{"$f":"IF(SolCompra!D7=\"\",\"\",SolCompra!D7)","v":""},null,null,null,null,null,"NIT:",{"$f":"IF(SolCompra!K7=\"\",\"\",SolCompra!K7)","v":""}]
[]
["Fechas estimadas"]
[]
[null,null,null,"Fecha de generación de la Compra:",null,null,{"$f":"IF(SolCompra!E17=\"\",\"\",SolCompra!E17)","v":""}]
[]
[" Artículos de la Cotización"]
[]
[]
[]
["Item","Referencia","Categoría","Familia","Nombre",null,null,null,null,"Cantidad","Unidad","Precio unitario","Precio + Gravámen","Precio total","IVA"]
[1,null,null,null,null,null,null,null,null,null,null,null,{"$f":"((L18/(1-R1))-L18)+L18","v":0},{"$f":"M18*J18","v":0},{"$f":"IF(Q18=\"SI\",N18*0.19,0)","v":0},"CCE160483 ArcGIS GIS Server Advanced (Windows) Up to Four Cores License","NO "]
["1. Si requiere agregue o elimine filas",null,null,null,null,null,null,null,null,null,null,null,null,"Sub Total:",{"$f":"ROUND(SUM(N18:N18),0)","v":0}]
[null,null,null,null,null,null,null,null,null,null,null,null,null,"IVA:",{"$f":"ROUND(SUM(O18:O18),0)","v":0}]
[null,null,null,null,null,null,null,null,null,null,null,null,null,"Total:",{"$f":"SUM(O19:O20)","v":0}]
[]
[]
[]
[]
[]
["Gravámenes adicionales (estampillas)"]
[]
["Si los hay, indique los gravámenes adicionales (estampilllas) a los que está sujeta la Orden de Compra. Son gravámens adiconales por ejemplo; estampillas y demás impuestos territoriales. Los impuestos como ICA y retención en la fuente NO son gravámenes adicionales."]
[]
[]
["No.","Descripción ",null,null,null,null,null,"% Gravámen"]
[1]
[]
[null,null,null,null,"Total Gravámenes adicionales",null,null,{"$f":"SUM(H33:I33)","v":0}]

{"sheet":"Catalogo","index":2,"n_rows":197,"n_cols":8,"rows_kept":197,"cut":false,"hidden":true,"merged":[]}
["Referencia","Categoría","Familia","Nombre","llave","Unidad","IVA","Precio"]
["CCE_DATACAPTURE_PERP","Licencias","ArcGIS Desktop","CCE_DATACAPTURE_PERP-ArcGIS Bundle for Data Capture","CCE_DATACAPTURE_PERP-ArcGIS Bundle for Data Capture","UND","NO ",8174078.9347434929]
["CCE_DATACAPTURE_TERM","Licencias","ArcGIS Desktop","CCE_DATACAPTURE_TERM-ArcGIS Bundle for Data Capture TERM","CCE_DATACAPTURE_TERM-ArcGIS Bundle for Data Capture TERM","UND","NO ",6256714.5631756065]
["CCE100475","Licencias","ArcGIS Desktop","CCE100475 ArcGIS Schematics for Desktop Single License","CCE100475 ArcGIS Schematics for Desktop Single License","UND","NO",7336596.4358850364]
["CCE100477","Licencias","ArcGIS Desktop","CCE100477 Licencias  ArcGIS Desktop - ArcGIS Schematics for Desktop Concurrent License","CCE100477 Licencias  ArcGIS Desktop - ArcGIS Schematics for Desktop Concurrent License","UND","NO",7336596.4390736772]
["CCE111290","Licencias","ArcGIS Desktop","CCE111290 Licencias  ArcGIS Desktop - ArcGIS Workflow Manager for Desktop Concurrent License","CCE111290 Licencias  ArcGIS Desktop - ArcGIS Workflow Manager for Desktop Concurrent License","UND","NO",7336596.4390736772]
["CCE111560","Licencias","ArcGIS Desktop","CCE111560 ArcGIS Workflow Manager for Desktop Single License","CCE111560 ArcGIS Workflow Manager for Desktop Single License","UND","NO",7336596.4358850364]
["CCE121833 ","Licencias","ArcGIS Desktop","CCE121833 Licencias  ArcGIS Desktop - ArcGIS for Aviation Charting for Desktop Concurrent Use License ","CCE121833 Licencias  ArcGIS Desktop - ArcGIS for Aviation Charting for Desktop Concurrent Use License ","UND","NO",39129875.399999999]
["CCE121834","Licencias","ArcGIS Desktop","CCE121834 ArcGIS for Aviation Charting for Desktop Single Use License","CCE121834 ArcGIS for Aviation Charting for Desktop Single Use License","UND","NO ",39129875.399999999]
["CCE121839","Licencias","ArcGIS Desktop","CCE121839 Licencias  ArcGIS Desktop ArcGIS For Maritime: Charting for Desktop Concurrent Use License","CCE121839 Licencias  ArcGIS Desktop ArcGIS For Maritime: Charting for Desktop Concurrent Use License","UND","NO",31695199.073999997]
["CCE121840","Licencias","ArcGIS Desktop","CCE121840 Licencias  ArcGIS Desktop ArcGIS For Maritime: Charting for Desktop Single Use License","CCE121840 Licencias  ArcGIS Desktop ArcGIS For Maritime: Charting for Desktop Single Use License","UND","NO",31695199.073999997]
["CCE122086","Licencias","ArcGIS Desktop","CCE122086 ArcGIS for Desktop Advanced Single Use License","CCE122086 ArcGIS for Desktop Advanced Single Use License","UND","NO",41084942.380319759]
["CCE127570","Licencias","ArcGIS Desktop","CCE127570 Esri CityEngine Basic Single for Linux License","CCE127570 Esri CityEngine Basic Single for Linux License","UND","NO",1467319.7144387062]
["CCE127611","Licencias","ArcGIS Desktop","CCE127611 Esri CityEngine Advanced Single for Linux License","CCE127611 Esri CityEngine Advanced Single for Linux License","UND","NO",11738554.511046907]
["CCE127612","Licencias","ArcGIS Desktop","CCE127612 Licencias  ArcGIS Desktop - Esri CityEngine Advanced Concurrent for Linux License","CCE127612 Licencias  ArcGIS Desktop - Esri CityEngine Advanced Concurrent for Linux License","UND","NO",11738554.51396887]
["CCE127614","Licencias","ArcGIS Desktop","CCE127614 Esri CityEngine Basic Single for Macintosh License","CCE127614 Esri CityEngine Basic Single for Macintosh License","UND","NO",1467319.7144387062]
["CCE127615","Licencias","ArcGIS Desktop","CCE127615 Esri CityEngine Advanced Single for Macintosh License","CCE127615 Esri CityEngine Advanced Single for Macintosh License","UND","NO",11738554.511046907]
["CCE127616","Licencias","ArcGIS Desktop","CCE127616 Licencias  ArcGIS Desktop - Esri CityEngine Advanced Concurrent for Macintosh License","CCE127616 Licencias  ArcGIS Desktop - Esri CityEngine Advanced Concurrent for Macintosh License","UND","NO",11738554.51396887]
["CCE127658","Licencias","ArcGIS Desktop","CCE127658 Licencias  ArcGIS Desktop - Esri CityEngine Advanced Concurrent for 64-Bit Windows License","CCE127658 Licencias  ArcGIS Desktop - Esri CityEngine Advanced Concurrent for 64-Bit Windows License","UND","NO",11738554.51396887]
["CCE127672","Licencias","ArcGIS Desktop","CCE127672 Esri CityEngine Advanced Single for 64-Bit Windows License","CCE127672 Esri CityEngine Advanced Single for 64-Bit Windows License","UND","NO",11738554.511046907]
["CCE127673","Licencias","ArcGIS Desktop","CCE127673 Esri CityEngine Basic Single for 64-Bit Windows License","CCE127673 Esri CityEngine Basic Single for 64-Bit Windows License","UND","NO",1467319.7144387062]
["CCE128884","Licencias","ArcGIS Desktop","CCE128884 Esri Roads and Highways for Desktop Single Licen","CCE128884 Esri Roads and Highways for Desktop Single Licen","UND","NO",31695199.074000005]
["CCE128890","Licencias","ArcGIS Desktop","CCE128890 Esri Roads and Highways for Desktop Concurrent Licen","CCE128890 Esri Roads and Highways for Desktop Concurrent Licen","UND","NO",31695199.074000005]
["CCE130214","Licencias","ArcGIS Desktop","CCE130214 Licencias  ArcGIS Desktop - ArcGIS for Maritime Bathymetry for Desktop Concurrent Use License","CCE130214 Licencias  ArcGIS Desktop - ArcGIS for Maritime Bathymetry for Desktop Concurrent Use License","UND","NO",15847599.536999999]
["CCE130215","Licencias","ArcGIS Desktop","CCE130215 Licencias  ArcGIS Desktop ArcGIS for Maritime: Bathymetry for Desktop Single Use License","CCE130215 Licencias  ArcGIS Desktop ArcGIS for Maritime: Bathymetry for Desktop Single Use License","UND","NO",15847599.536999999]
["CCE130940","Licencias","ArcGIS Desktop","CCE130940 Licencias  ArcGIS Desktop ArcGIS for Maritime: Bathymetry for Desktop Bundle Single Use License","CCE130940 Licencias  ArcGIS Desktop ArcGIS for Maritime: Bathymetry for Desktop Bundle Single Use License","UND","NO",39618998.842500001]
["CCE130941","Licencias","ArcGIS Desktop","CCE130941 Licencias  ArcGIS Desktop - ArcGIS for Maritime Bathymetry for Desktop Bundle Concurrent Use License","CCE130941 Licencias  ArcGIS Desktop - ArcGIS for Maritime Bathymetry for Desktop Bundle Concurrent Use License","UND","NO",39618998.842500001]
["CCE133005 ","Licencias","ArcGIS Desktop","CCE133005 Licencias  ArcGIS Desktop - ArcGIS for Aviation Airports Concurrent Licen","CCE133005 Licencias  ArcGIS Desktop - ArcGIS for Aviation Airports Concurrent Licen","UND","NO",19564938.228789233]
["CCE133006","Licencias","ArcGIS Desktop","CCE133006 ArcGIS for Aviation Airports Single Licen","CCE133006 ArcGIS for Aviation Airports Single Licen","UND","NO ",19564938.228789233]
["CCE133013","Licencias","ArcGIS Desktop","CCE133013 ArcGIS for Aviation Charting Bundle Single Licen","CCE133013 ArcGIS for Aviation Charting Bundle Single Licen","UND","NO ",80215474.600000009]
["CCE133014 ","Licencias","ArcGIS Desktop","CCE133014 Licencias  ArcGIS Desktop - ArcGIS for Aviation Charting Bundle Concurrent Licen","CCE133014 Licencias  ArcGIS Desktop - ArcGIS for Aviation Charting Bundle Concurrent Licen","UND","NO",80215474.600000009]
["CCE133016","Licencias","ArcGIS Desktop","CCE133016 ArcGIS for Aviation Airports Bundle Single Use License","CCE133016 ArcGIS for Aviation Airports Bundle Single Use License","UND","NO ",41116398]
["CCE133017 ","Licencias","ArcGIS Desktop","CCE133017 Licencias  ArcGIS Desktop - ArcGIS for Aviation Airports Bundle Concurrent Use License","CCE133017 Licencias  ArcGIS Desktop - ArcGIS for Aviation Airports Bundle Concurrent Use License","UND","NO",41116398]
["CCE139825","Licencias","ArcGIS Desktop","CCE139825 StreetMap Premium for ArcGIS for Desktop Colombia HERE Single Use Term License","CCE139825 StreetMap Premium for ArcGIS for Desktop Colombia HERE Single Use Term License","AÑO","NO ",11441446.444667263]
["CCE139826 ","Licencias","ArcGIS Desktop","CCE139826 Licencias  ArcGIS Desktop - StreetMap Premium for ArcGIS for Desktop Colombia HERE Concurrent Use Term License","CCE139826 Licencias  ArcGIS Desktop - StreetMap Premium for ArcGIS for Desktop Colombia HERE Concurrent Use Term License","AÑO","NO",28603615.054089695]
["CCE139841","Licencias","ArcGIS Desktop","CCE139841 StreetMap Premium for ArcGIS for Desktop Map Display Geocoding Colombia HERE Single Use Term Lic","CCE139841 StreetMap Premium for ArcGIS for Desktop Map Display Geocoding Colombia HERE Single Use Term Lic","AÑO","NO ",5720723.2223336315]
["CCE139842 ","Licencias","ArcGIS Desktop","CCE139842 Licencias  ArcGIS Desktop - StreetMap Premium for ArcGIS for Desktop Map Display Geocoding Colombia HERE Concurrent Use Term Lic","CCE139842 Licencias  ArcGIS Desktop - StreetMap Premium for ArcGIS for Desktop Map Display Geocoding Colombia HERE Concurrent Use Term Lic","AÑO","NO",14301822.861932561]
["CCE153359","Licencias","ArcGIS Desktop","CCE153359 ArcGIS Pipeline Referencing for Desktop Single Use License","CCE153359 ArcGIS Pipeline Referencing for Desktop Single Use License","UND","NO",31695199.074000005]
["CCE154283","Licencias","ArcGIS Desktop","CCE154283 ArcGIS Desktop All Extensions Single Use (Bundle) Perpetual License","CCE154283 ArcGIS Desktop All Extensions Single Use (Bundle) Perpetual License","UND","NO",29347406.550000001]
["CCE158381","Licencias","ArcGIS Desktop","CCE158381 Licencias  ArcGIS Desktop ArcGIS for Maritime: Charting for Desktop Bundle Single Use License","CCE158381 Licencias  ArcGIS Desktop ArcGIS for Maritime: Charting for Desktop Bundle Single Use License","UND","NO",51346227.1197]
["CCE159049","Licencias","ArcGIS Desktop","CCE159049 ArcGIS Image Analyst for ArcGIS Pro Single Use License","CCE159049 ArcGIS Image Analyst for ArcGIS Pro Single Use License","UND","NO",7923799.7685000012]
["CCE159050","Licencias","ArcGIS Desktop","CCE159050 ArcGIS Image Analyst for ArcGIS Pro Concurrent Use License","CCE159050 ArcGIS Image Analyst for ArcGIS Pro Concurrent Use License","UND","NO",7923799.7685000012]
["CCE162412","Licencias","ArcGIS Desktop","CCE162412 ArcGIS Pipeline Referencing for Desktop Concurrent Use License","CCE162412 ArcGIS Pipeline Referencing for Desktop Concurrent Use License","UND","NO",31695199.074000005]
["CCE52382","Licencias","ArcGIS Desktop","CCE52382 Licencias  ArcGIS Desktop - ArcGIS for Desktop Advanced Concurrent License","CCE52382 Licencias  ArcGIS Desktop - ArcGIS for Desktop Advanced Concurrent License","UND","NO",41084942.384773433]
["CCE86353","Licencias","ArcGIS Desktop","CCE86353 Licencias  ArcGIS Desktop - ArcGIS for Desktop Standard Concurrent License","CCE86353 Licencias  ArcGIS Desktop - ArcGIS for Desktop Standard Concurrent License","UND","NO",20542470.663759254]
["CCE87143","Licencias","ArcGIS Desktop","CCE87143 Licencias  ArcGIS Desktop - ArcGIS for Desktop Basic Concurrent License","CCE87143 Licencias  ArcGIS Desktop - ArcGIS for Desktop Basic Concurrent License","UND","NO",8803916.1497903839]
["CCE88282","Licencias","ArcGIS Desktop","CCE88282 Licencias  ArcGIS Desktop - ArcGIS Spatial Analyst for Desktop Concurrent License","CCE88282 Licencias  ArcGIS Desktop - ArcGIS Spatial Analyst for Desktop Concurrent License","UND","NO",7336596.4390736772]
["CCE88283","Licencias","ArcGIS Desktop","CCE88283 Licencias  ArcGIS Desktop - ArcGIS 3D Analyst for Desktop Concurrent License","CCE88283 Licencias  ArcGIS Desktop - ArcGIS 3D Analyst for Desktop Concurrent License","UND","NO",7336596.4390736772]
["CCE88284","Licencias","ArcGIS Desktop","CCE88284 Licencias  ArcGIS Desktop - ArcGIS Geostatistical Analyst for Desktop Concurrent License","CCE88284 Licencias  ArcGIS Desktop - ArcGIS Geostatistical Analyst for Desktop Concurrent License","UND","NO",7336596.4390736772]
["CCE90321","Licencias","ArcGIS Desktop","CCE90321 Licencias  ArcGIS Desktop - ArcGIS Publisher for Desktop Concurrent License","CCE90321 Licencias  ArcGIS Desktop - ArcGIS Publisher for Desktop Concurrent License","UND","NO",7336596.4390736772]
["CCE91605","Licencias","ArcGIS Desktop","CCE91605 Licencias  ArcGIS Desktop - ArcGIS Tracking Analyst for Desktop Concurrent License","CCE91605 Licencias  ArcGIS Desktop - ArcGIS Tracking Analyst for Desktop Concurrent License","UND","NO",7336596.4390736772]
["CCE93164","Licencias","ArcGIS Desktop","CCE93164 ArcGIS Tracking Analyst for Desktop Single License","CCE93164 ArcGIS Tracking Analyst for Desktop Single License","UND","NO",7336596.4358850364]
["CCE93168","Licencias","ArcGIS Desktop","CCE93168 ArcGIS Spatial Analyst for Desktop Single License","CCE93168 ArcGIS Spatial Analyst for Desktop Single License","UND","NO",7336596.4358850364]
["CCE93172","Licencias","ArcGIS Desktop","CCE93172 ArcGIS 3D Analyst for Desktop Single License","CCE93172 ArcGIS 3D Analyst for Desktop Single License","UND","NO",7336596.4358850364]
["CCE93176","Licencias","ArcGIS Desktop","CCE93176 ArcGIS Geostatistical Analyst for Desktop Single License","CCE93176 ArcGIS Geostatistical Analyst for Desktop Single License","UND","NO",7336596.4358850364]
["CCE93194","Licencias","ArcGIS Desktop","CCE93194 ArcGIS Publisher for Desktop Single License","CCE93194 ArcGIS Publisher for Desktop Single License","UND","NO",7336596.4358850364]
["CCE93198","Licencias","ArcGIS Desktop","CCE93198 ArcGIS for Desktop Basic Single Use License","CCE93198 ArcGIS for Desktop Basic Single Use License","UND","NO",4401958.0751618715]
["CCE93206","Licencias","ArcGIS Desktop","CCE93206 ArcGIS for Desktop Standard Single Use License","CCE93206 ArcGIS for Desktop Standard Single Use License","UND","NO",20542470.66137065]
["CCE98131","Licencias","ArcGIS Desktop","CCE98131 ArcGIS Data Interoperability for Desktop Single License","CCE98131 ArcGIS Data Interoperability for Desktop Single License","UND","NO",7336596.4358850364]
["CCE98133","Licencias","ArcGIS Desktop","CCE98133 Licencias  ArcGIS Desktop - ArcGIS Data Interoperability for Desktop Concurrent License","CCE98133 Licencias  ArcGIS Desktop - ArcGIS Data Interoperability for Desktop Concurrent License","UND","NO",7336596.4390736772]
["CCE99045","Licencias","ArcGIS Desktop","CCE99045 ArcGIS Data Reviewer for Desktop Single License","CCE99045 ArcGIS Data Reviewer for Desktop Single License","UND","NO",7336596.4358850364]
["CCE99047","Licencias","ArcGIS Desktop","CCE99047 Licencias  ArcGIS Desktop - ArcGIS Data Reviewer for Desktop Concurrent License","CCE99047 Licencias  ArcGIS Desktop - ArcGIS Data Reviewer for Desktop Concurrent License","UND","NO",7336596.4390736772]
["CCE99734","Licencias","ArcGIS Desktop","CCE99734 ArcGIS Network Analyst for Desktop Single License","CCE99734 ArcGIS Network Analyst for Desktop Single License","UND","NO",7336596.4358850364]
["CCE99736","Licencias","ArcGIS Desktop","CCE99736 Licencias  ArcGIS Desktop - ArcGIS Network Analyst for Desktop Concurrent License","CCE99736 Licencias  ArcGIS Desktop - ArcGIS Network Analyst for Desktop Concurrent License","UND","NO",7336596.4390736772]
["CCE_EMCS_AV_30","Licencias","ArcGIS Server","CCE_EMCS_AV_30 ArcGIS Enterprise Cloud Server (IaaS) por 30 días – ArcGIS Advanced","CCE_EMCS_AV_30 ArcGIS Enterprise Cloud Server (IaaS) por 30 días – ArcGIS Advanced","UND","NO",19850488.644117851]
["CCE_EMCS_AV_365","Licencias","ArcGIS Server","CCE_EMCS_AV_365 ArcGIS Enterprise Cloud Server (IaaS) por 365 días – ArcGIS Advanced","CCE_EMCS_AV_365 ArcGIS Enterprise Cloud Server (IaaS) por 365 días – ArcGIS Advanced","UND","NO",124103149.08933455]
["CCE_EMCS_AV_90","Licencias","ArcGIS Server","CCE_EMCS_AV_90 ArcGIS Enterprise Cloud Server (IaaS) por 90 días – ArcGIS Advanced","CCE_EMCS_AV_90 ArcGIS Enterprise Cloud Server (IaaS) por 90 días – ArcGIS Advanced","UND","NO",52155920.210425116]
["CCE_EMCS_ST_30","Licencias","ArcGIS Server","CCE_EMCS_ST_30 ArcGIS Enterprise Cloud Server (IaaS) por 30 días – ArcGIS Standard","CCE_EMCS_ST_30 ArcGIS Enterprise Cloud Server (IaaS) por 30 días – ArcGIS Standard","UND","NO",11398435.786154797]
["CCE_EMCS_ST_365","Licencias","ArcGIS Server","CCE_EMCS_ST_365 ArcGIS Enterprise Cloud Server (IaaS) por 365 días – ArcGIS Standard","CCE_EMCS_ST_365 ArcGIS Enterprise Cloud Server (IaaS) por 365 días – ArcGIS Standard","UND","NO",81842882.684362352]
["CCE_EMCS_ST_90","Licencias","ArcGIS Server","CCE_EMCS_ST_90 ArcGIS Enterprise Cloud Server (IaaS) por 90 días – ArcGIS Standard","CCE_EMCS_ST_90 ArcGIS Enterprise Cloud Server (IaaS) por 90 días – ArcGIS Standard","UND","NO",31025787.007939018]
["CCE114454","Licencias","ArcGIS Server","CCE114454 ArcPad License","CCE114454 ArcPad License","UND","NO",2054247.3865833394]
["CCE139827","Licencias","ArcGIS Server","CCE139827 StreetMap Premium for ArcGIS for Server Enterprise Colombia HERE Up to Four Core Term License","CCE139827 StreetMap Premium for ArcGIS for Server Enterprise Colombia HERE Up to Four Core Term License","AÑO","NO ",143018077.38560539]
["CCE139828","Licencias","ArcGIS Server","CCE139828 StreetMap Premium for ArcGIS for Server Enterprise Colombia HERE Two Additional Cores Term","CCE139828 StreetMap Premium for ArcGIS for Server Enterprise Colombia HERE Two Additional Cores Term","AÑO","NO ",57207231.165757857]
["CCE139843","Licencias","ArcGIS Server","CCE139843 StreetMap Premium for ArcGIS Server Enterp Map Display Geocoding Colombia HERE Up to4 CoresTerm Lic","CCE139843 StreetMap Premium for ArcGIS Server Enterp Map Display Geocoding Colombia HERE Up to4 CoresTerm Lic","AÑO","NO ",71509054.027690411]
["CCE139844","Licencias","ArcGIS Server","CCE139844 StreetMap Premium for ArcGIS Server Enterp Map Display Geocoding Colombia HERE 2 Add Cores TermLic","CCE139844 StreetMap Premium for ArcGIS Server Enterp Map Display Geocoding Colombia HERE 2 Add Cores TermLic","AÑO","NO ",28603615.054089695]
["CCE153472","Licencias","ArcGIS Server","CCE153472 ArcGIS Pipeline Referencing for ArcGIS GIS Server Standard (Windows) Up to Four Cores License","CCE153472 ArcGIS Pipeline Referencing for ArcGIS GIS Server Standard (Windows) Up to Four Cores License","UND","NO",31695199.074000005]
["CCE153473","Licencias","ArcGIS Server","CCE153473 ArcGIS Pipeline Referencing for ArcGIS GIS Server Advanced (Windows) Up to Four Cores License","CCE153473 ArcGIS Pipeline Referencing for ArcGIS GIS Server Advanced (Windows) Up to Four Cores License","UND","NO",31695199.074000005]
["CCE153476","Licencias","ArcGIS Server","CCE153476 ArcGIS Pipeline Referencing for ArcGIS GIS Server Standard (Windows) Additional Core License","CCE153476 ArcGIS Pipeline Referencing for ArcGIS GIS Server Standard (Windows) Additional Core License","UND","NO",7923799.7685000012]
["CCE153477","Licencias","ArcGIS Server","CCE153477 ArcGIS Pipeline Referencing for ArcGIS GIS Server Advanced (Windows) Additional Core License","CCE153477 ArcGIS Pipeline Referencing for ArcGIS GIS Server Advanced (Windows) Additional Core License","UND","NO",7923799.7685000012]
["CCE153551","Licencias","ArcGIS Server","CCE153551 ArcGIS Pipeline Referencing for ArcGIS GIS Server Workgroup Standard Up to Four Cores License","CCE153551 ArcGIS Pipeline Referencing for ArcGIS GIS Server Workgroup Standard Up to Four Cores License","UND","NO",15847599.537000002]
["CCE153552","Licencias","ArcGIS Server","CCE153552 ArcGIS Pipeline Referencing for ArcGIS GIS Server Workgroup Advanced Up to Four Cores License","CCE153552 ArcGIS Pipeline Referencing for ArcGIS GIS Server Workgroup Advanced Up to Four Cores License","UND","NO",15847599.537000002]
["CCE154251-N2-5","Licencias","ArcGIS Server","CCE154251-N2-5 5 Usuarios nombrados Nivel 2 ArcGIS Enterprise Standard o Advanced Licencia Perpetua","CCE154251-N2-5 5 Usuarios nombrados Nivel 2 ArcGIS Enterprise Standard o Advanced Licencia Perpetua","UND","NO",39129875.399999999]
["CCE154251-N2-50","Licencias","ArcGIS Server","CCE154251-N2-50 50 Usuarios nombrados Nivel 2 ArcGIS Enterprise Standard o Avanzado Licencia Perpetua","CCE154251-N2-50 50 Usuarios nombrados Nivel 2 ArcGIS Enterprise Standard o Avanzado Licencia Perpetua","UND","NO",379559791.38]
["CCE154252-N2T-5","Licencias","ArcGIS Server","CCE154252-N2T-5 5 Usuarios Nombrados Nivel 2 ArcGIS Enterprise Standard o Advanzado Term License","CCE154252-N2T-5 5 Usuarios Nombrados Nivel 2 ArcGIS Enterprise Standard o Advanzado Term License","UND","NO",9782468.8499999996]
["CCE154252-N2T-50","Licencias","ArcGIS Server","CCE154252-N2T-50 50 Usuarios Nombrados Nivel 2 ArcGIS Enterprise Standard o Advanzado Term License","CCE154252-N2T-50 50 Usuarios Nombrados Nivel 2 ArcGIS Enterprise Standard o Advanzado Term License","UND","NO",94889947.850287899]
["CCE160031","Licencias","ArcGIS Server","CCE160031 ArcGIS GeoAnalytics Server (Windows) Additional Core (up to 32 per server) License","CCE160031 ArcGIS GeoAnalytics Server (Windows) Additional Core (up to 32 per server) License","UND","NO",14673703.280287895]
["CCE160033","Licencias","ArcGIS Server","CCE160033 ArcGIS Image Server (Windows) Additional Core (more than 32 per Server) License","CCE160033 ArcGIS Image Server (Windows) Additional Core (more than 32 per Server) License","UND","NO",7336851.6401439477]
["CCE160037","Licencias","ArcGIS Server","CCE160037 ArcGIS GeoAnalytics Server (Windows) Additional Core (more than 32 per Server) License","CCE160037 ArcGIS GeoAnalytics Server (Windows) Additional Core (more than 32 per Server) License","UND","NO",7336851.6401439477]
["CCE160054","Licencias","ArcGIS Server","CCE160054 ArcGIS GeoEvent Server (Windows) Additional Core (more than 32 per Server) License","CCE160054 ArcGIS GeoEvent Server (Windows) Additional Core (more than 32 per Server) License","UND","NO",7336851.6401439477]
["CCE160450","Licencias","ArcGIS Server","CCE160450 ArcGIS Enterprise Workgroup Advanced Up to Two Cores License","CCE160450 ArcGIS Enterprise Workgroup Advanced Up to Two Cores License","UND","NO",29347406.550000001]
["CCE160452","Licencias","ArcGIS Server","CCE160452 ArcGIS Enterprise Workgroup Standard Up to Two Cores License","CCE160452 ArcGIS Enterprise Workgroup Standard Up to Two Cores License","UND","NO",14673703.280287895]
["CCE160454","Licencias","ArcGIS Server","CCE160454 ArcGIS GIS Server Workgroup Advanced Up to Two Cores License","CCE160454 ArcGIS GIS Server Workgroup Advanced Up to Two Cores License","UND","NO ",29346386.811694395]
["CCE160455","Licencias","ArcGIS Server","CCE160455 ArcGIS GIS Server Workgroup Standard Up to Two Cores License","CCE160455 ArcGIS GIS Server Workgroup Standard Up to Two Cores License","UND","NO ",14673193.939924318]
["CCE160458","Licencias","ArcGIS Server","CCE160458 ArcGIS Enterprise Advanced (Windows) Up to Four Cores License","CCE160458 ArcGIS Enterprise Advanced (Windows) Up to Four Cores License","UND","NO",117389626.2]
["CCE160463","Licencias","ArcGIS Server","CCE160463 ArcGIS Enterprise Standard (Windows) Up to Four Cores License","CCE160463 ArcGIS Enterprise Standard (Windows) Up to Four Cores License","UND","NO",58694813.100000001]
["CCE160470","Licencias","ArcGIS Server","CCE160470 ArcGIS GeoAnalytics Server (Windows) Up to Four Cores License","CCE160470 ArcGIS GeoAnalytics Server (Windows) Up to Four Cores License","UND","NO",58694813.100000001]
["CCE160472","Licencias","ArcGIS Server","CCE160472 ArcGIS GeoAnalytics Server Workgroup Up to Four Cores License","CCE160472 ArcGIS GeoAnalytics Server Workgroup Up to Four Cores License","UND","NO",29347406.550000001]
["CCE160474","Licencias","ArcGIS Server","CCE160474 ArcGIS GeoEvent Server (Windows) Up to Four Cores License","CCE160474 ArcGIS GeoEvent Server (Windows) Up to Four Cores License","UND","NO",58694813.100000001]
["CCE160475","Licencias","ArcGIS Server","CCE160475 ArcGIS GeoEvent Server Workgroup Up to Four Cores License","CCE160475 ArcGIS GeoEvent Server Workgroup Up to Four Cores License","UND","NO",29347406.550000001]
["CCE160478","Licencias","ArcGIS Server","CCE160478 ArcGIS Image Server (Windows) Up to Four Cores License","CCE160478 ArcGIS Image Server (Windows) Up to Four Cores License","UND","NO",58694813.100000001]
["CCE160480","Licencias","ArcGIS Server","CCE160480 ArcGIS Image Server Workgroup Up to Four Cores License","CCE160480 ArcGIS Image Server Workgroup Up to Four Cores License","UND","NO",29347406.550000001]
["CCE160483","Licencias","ArcGIS Server","CCE160483 ArcGIS GIS Server Advanced (Windows) Up to Four Cores License","CCE160483 ArcGIS GIS Server Advanced (Windows) Up to Four Cores License","UND","NO ",117385549.37251027]
["CCE160484","Licencias","ArcGIS Server","CCE160484 Licencias ArcGIS Server ArcGIS for Maritime for ArcGIS GIS Server Advanced (Windows) Up to Four Cores License","CCE160484 Licencias ArcGIS Server ArcGIS for Maritime for ArcGIS GIS Server Advanced (Windows) Up to Four Cores License","UND","NO",31695199.073999997]
["CCE160485","Licencias","ArcGIS Server","CCE160485 Licencias ArcGIS Server ArcGIS for Maritime for ArcGIS GIS Server Workgroup Advanced Maximum Four Cores License","CCE160485 Licencias ArcGIS Server ArcGIS for Maritime for ArcGIS GIS Server Workgroup Advanced Maximum Four Cores License","UND","NO",15847599.536999999]
["CCE160486","Licencias","ArcGIS Server","CCE160486 Licencias ArcGIS Server ArcGIS for Maritime for ArcGIS GIS Server Standard (Windows) Up to Four Cores License","CCE160486 Licencias ArcGIS Server ArcGIS for Maritime for ArcGIS GIS Server Standard (Windows) Up to Four Cores License","UND","NO",31695199.073999997]
["CCE160487","Licencias","ArcGIS Server","CCE160487 Licencias ArcGIS Server ArcGIS for Maritime for ArcGIS GIS Server Workgroup Standard Maximum Four Cores License","CCE160487 Licencias ArcGIS Server ArcGIS for Maritime for ArcGIS GIS Server Workgroup Standard Maximum Four Cores License","UND","NO",15847599.536999999]
["CCE160489","Licencias","ArcGIS Server","CCE160489 ArcGIS GIS Server Basic (Windows) Up to Four Cores License","CCE160489 ArcGIS GIS Server Basic (Windows) Up to Four Cores License","UND","NO ",29346386.811694395]
["CCE160490","Licencias","ArcGIS Server","CCE160490 ArcGIS GIS Server Workgroup Basic Maximum Four Cores License","CCE160490 ArcGIS GIS Server Workgroup Basic Maximum Four Cores License","UND","NO ",14673193.939924318]
["CCE160491","Licencias","ArcGIS Server","CCE160491 ArcGIS Data Reviewer for ArcGIS GIS Server Advanced (Windows) Up to Four Cores License","CCE160491 ArcGIS Data Reviewer for ArcGIS GIS Server Advanced (Windows) Up to Four Cores License","UND","NO ",29346386.811694395]
["CCE160492","Licencias","ArcGIS Server","CCE160492 ArcGIS Data Reviewer for ArcGIS GIS Server Workgroup Advanced Maximum Four Cores License","CCE160492 ArcGIS Data Reviewer for ArcGIS GIS Server Workgroup Advanced Maximum Four Cores License","UND","NO ",14673193.939924318]
["CCE160493","Licencias","ArcGIS Server","CCE160493 ArcGIS Data Reviewer for ArcGIS GIS Server Standard (Windows) Up to Four Cores License","CCE160493 ArcGIS Data Reviewer for ArcGIS GIS Server Standard (Windows) Up to Four Cores License","UND","NO ",29346386.811694395]
["CCE160494","Licencias","ArcGIS Server","CCE160494 ArcGIS Data Reviewer for ArcGIS GIS Server Workgroup Standard Maximum Four Cores License","CCE160494 ArcGIS Data Reviewer for ArcGIS GIS Server Workgroup Standard Maximum Four Cores License","UND","NO ",14673193.939924318]
["CCE160501","Licencias","ArcGIS Server","CCE160501 Esri Roads and Highways for ArcGIS GIS Server Workgroup Advanced Maximum Four Cores License","CCE160501 Esri Roads and Highways for ArcGIS GIS Server Workgroup Advanced Maximum Four Cores License","UND","NO ",14673193.939924318]
["CCE160502","Licencias","ArcGIS Server","CCE160502 Esri Roads and Highways for ArcGIS GIS Server Workgroup Standard Maximum Four Cores License","CCE160502 Esri Roads and Highways for ArcGIS GIS Server Workgroup Standard Maximum Four Cores License","UND","NO ",14673193.939924318]
["CCE160503","Licencias","ArcGIS Server","CCE160503 ArcGIS Data Interoperability for ArcGIS GIS Server Workgroup Advanced Maximum Four Cores License","CCE160503 ArcGIS Data Interoperability for ArcGIS GIS Server Workgroup Advanced Maximum Four Cores License","UND","NO ",14673193.939924318]
["CCE160505","Licencias","ArcGIS Server","CCE160505 ArcGIS Data Interoperability for ArcGIS GIS Server Workgroup Standard Maximum Four Cores License","CCE160505 ArcGIS Data Interoperability for ArcGIS GIS Server Workgroup Standard Maximum Four Cores License","UND","NO ",14673193.939924318]
["CCE160506","Licencias","ArcGIS Server","CCE160506 ArcGIS Data Interoperability for Server Enterprise Advanced , Up 4 Cores Licen","CCE160506 ArcGIS Data Interoperability for Server Enterprise Advanced , Up 4 Cores Licen","UND","NO ",29346386.811694395]
["CCE160507","Licencias","ArcGIS Server","CCE160507 ArcGIS Data Interoperability for ArcGIS GIS Server Standard (Windows) Up to Four Cores License","CCE160507 ArcGIS Data Interoperability for ArcGIS GIS Server Standard (Windows) Up to Four Cores License","UND","NO ",29346386.811694395]
["CCE160509","Licencias","ArcGIS Server","CCE160509 ArcGIS Network Analyst for ArcGIS GIS Server Standard (Windows) Up to Four Cores License","CCE160509 ArcGIS Network Analyst for ArcGIS GIS Server Standard (Windows) Up to Four Cores License","UND","NO ",29346386.811694395]
["CCE160510","Licencias","ArcGIS Server","CCE160510 ArcGIS Network Analyst for ArcGIS GIS Server Workgroup Standard Maximum Four Cores License","CCE160510 ArcGIS Network Analyst for ArcGIS GIS Server Workgroup Standard Maximum Four Cores License","UND","NO ",14673193.939924318]
["CCE160513","Licencias","ArcGIS Server","CCE160513 ArcGIS GIS Server Standard (Windows) Up to Four Cores License","CCE160513 ArcGIS GIS Server Standard (Windows) Up to Four Cores License","UND","NO ",58692774.680967256]
["CCE160514","Licencias","ArcGIS Server","CCE160514 ArcGIS Workflow Manager for ArcGIS GIS Server Advanced (Windows) Up to Four Cores License","CCE160514 ArcGIS Workflow Manager for ArcGIS GIS Server Advanced (Windows) Up to Four Cores License","UND","NO ",29346386.811694395]
["CCE160516","Licencias","ArcGIS Server","CCE160516 ArcGIS Workflow Manager for ArcGIS GIS Server Workgroup Advanced Maximum Four Cores License","CCE160516 ArcGIS Workflow Manager for ArcGIS GIS Server Workgroup Advanced Maximum Four Cores License","UND","NO ",14673193.939924318]
["CCE160518","Licencias","ArcGIS Server","CCE160518 ArcGIS Workflow Manager for ArcGIS GIS Server Standard (Windows) Up to Four Cores License","CCE160518 ArcGIS Workflow Manager for ArcGIS GIS Server Standard (Windows) Up to Four Cores License","UND","NO ",29346386.811694395]
["CCE160520","Licencias","ArcGIS Server","CCE160520 ArcGIS Workflow Manager for ArcGIS GIS Server Workgroup Standard Maximum Four Cores License","CCE160520 ArcGIS Workflow Manager for ArcGIS GIS Server Workgroup Standard Maximum Four Cores License","UND","NO ",14673193.939924318]
["CCE160524","Licencias","ArcGIS Server","CCE160524 Esri Roads and Highways for ArcGIS GIS Server Advanced (Windows) Up to Four Cores License","CCE160524 Esri Roads and Highways for ArcGIS GIS Server Advanced (Windows) Up to Four Cores License","UND","NO ",29346386.811694395]
["CCE160525","Licencias","ArcGIS Server","CCE160525 Esri Roads and Highways for ArcGIS GIS Server Standard (Windows) Up to Four Cores License","CCE160525 Esri Roads and Highways for ArcGIS GIS Server Standard (Windows) Up to Four Cores License","UND","NO ",29346386.811694395]
["CCE160582","Licencias","ArcGIS Server","CCE160582 Licencias ArcGIS Server Esri Roads and Highways Roadway Reporter for ArcGIS GIS Server Up to 250 Users License","CCE160582 Licencias ArcGIS Server Esri Roads and Highways Roadway Reporter for ArcGIS GIS Server Up to 250 Users License","UND","NO",126780796.29599999]
["CCE160583","Licencias","ArcGIS Server","CCE160583 Licencias ArcGIS Server Esri Roads and Highways Roadway Reporter for ArcGIS GIS Server Up to 50 Users License","CCE160583 Licencias ArcGIS Server Esri Roads and Highways Roadway Reporter for ArcGIS GIS Server Up to 50 Users License","UND","NO",63390860.130000003]
["CCE160584","Licencias","ArcGIS Server","CCE160584 Licencias ArcGIS Server Esri Roads and Highways Roadway Reporter for ArcGIS GIS Server Up to 500 Users License","CCE160584 Licencias ArcGIS Server Esri Roads and Highways Roadway Reporter for ArcGIS GIS Server Up to 500 Users License","UND","NO",190171194.44400001]
["CCE160894","Licencias","ArcGIS Server","CCE160894 ArcGIS GIS Server Workgroup Advanced Additional Core License","CCE160894 ArcGIS GIS Server Workgroup Advanced Additional Core License","UND","NO ",14673193.939924318]
["CCE160895","Licencias","ArcGIS Server","CCE160895 ArcGIS GIS Server Workgroup Standard Additional Core License","CCE160895 ArcGIS GIS Server Workgroup Standard Additional Core License","UND","NO ",7336596.4358850364]
["CCE160899","Licencias","ArcGIS Server","CCE160899 ArcGIS GIS Server Advanced (Windows) Additional Core License","CCE160899 ArcGIS GIS Server Advanced (Windows) Additional Core License","UND","NO ",29346386.811694395]
["CCE160900","Licencias","ArcGIS Server","CCE160900 ArcGIS GIS Server Standard (Windows) Additional Core License","CCE160900 ArcGIS GIS Server Standard (Windows) Additional Core License","UND","NO ",14673193.939924318]
["CCE160901","Licencias","ArcGIS Server","CCE160901 ArcGIS GIS Server Basic (Windows) Additional Core License","CCE160901 ArcGIS GIS Server Basic (Windows) Additional Core License","UND","NO ",7336596.4358850364]
["CCE161019","Licencias","ArcGIS Server","CCE161019 ArcGIS Data Interoperability for ArcGIS GIS Server Advanced (Windows) Additional Core License","CCE161019 ArcGIS Data Interoperability for ArcGIS GIS Server Advanced (Windows) Additional Core License","UND","NO ",7336596.4358850364]
["CCE161020","Licencias","ArcGIS Server","CCE161020 ArcGIS Data Interoperability for ArcGIS GIS Server Standard (Windows) Additional Core License","CCE161020 ArcGIS Data Interoperability for ArcGIS GIS Server Standard (Windows) Additional Core License","UND","NO ",7336596.4358850364]
["CCE161022","Licencias","ArcGIS Server","CCE161022 ArcGIS Network Analyst for ArcGIS GIS Server Standard (Windows) Additional Core License","CCE161022 ArcGIS Network Analyst for ArcGIS GIS Server Standard (Windows) Additional Core License","UND","NO ",7336596.4358850364]
["CCE161047","Licencias","ArcGIS Server","CCE161047 ArcGIS Workflow Manager for ArcGIS GIS Server Advanced (Windows) Additional Core License","CCE161047 ArcGIS Workflow Manager for ArcGIS GIS Server Advanced (Windows) Additional Core License","UND","NO ",7336596.4358850364]
["CCE161048","Licencias","ArcGIS Server","CCE161048 ArcGIS Workflow Manager for ArcGIS GIS Server Standard (Windows) Additional Core License","CCE161048 ArcGIS Workflow Manager for ArcGIS GIS Server Standard (Windows) Additional Core License","UND","NO ",7336596.4358850364]
["CCE161055","Licencias","ArcGIS Server","CCE161055 ArcGIS Image Server (Windows) Additional Core (up to 32 per server) License","CCE161055 ArcGIS Image Server (Windows) Additional Core (up to 32 per server) License","UND","NO",14673703.280287895]
["CCE161078","Licencias","ArcGIS Server","CCE161078 ArcGIS Data Reviewer for ArcGIS GIS Server Advanced (Windows) Additional Core License","CCE161078 ArcGIS Data Reviewer for ArcGIS GIS Server Advanced (Windows) Additional Core License","UND","NO ",7336596.4358850364]
["CCE161079","Licencias","ArcGIS Server","CCE161079 ArcGIS Data Reviewer for ArcGIS GIS Server Standard (Windows) Additional Core","CCE161079 ArcGIS Data Reviewer for ArcGIS GIS Server Standard (Windows) Additional Core","UND","NO ",7336596.4358850364]
["CCE161082","Licencias","ArcGIS Server","CCE161082 Esri Roads and Highways for ArcGIS GIS Server Standard (Windows) Additional Core License","CCE161082 Esri Roads and Highways for ArcGIS GIS Server Standard (Windows) Additional Core License","UND","NO ",7336596.4358850364]
["CCE161083","Licencias","ArcGIS Server","CCE161083 Esri Roads and Highways for ArcGIS GIS Server Advanced (Windows) Additional Core License","CCE161083 Esri Roads and Highways for ArcGIS GIS Server Advanced (Windows) Additional Core License","UND","NO ",7336596.4358850364]
["CCE161089","Licencias","ArcGIS Server","CCE161089 ArcGIS GeoEvent Server (Windows) Additional Core (up to 32 per server) License","CCE161089 ArcGIS GeoEvent Server (Windows) Additional Core (up to 32 per server) License","UND","NO",14673703.280287895]
["CCE161111","Licencias","ArcGIS Server","CCE161111 Licencias ArcGIS Server ArcGIS for Maritime for ArcGIS GIS Server Standard (Windows) Additional Core License","CCE161111 Licencias ArcGIS Server ArcGIS for Maritime for ArcGIS GIS Server Standard (Windows) Additional Core License","UND","NO",7923799.7684999993]
["CCE161112","Licencias","ArcGIS Server","CCE161112 Licencias ArcGIS Server ArcGIS for Maritime for ArcGIS GIS Server Advanced (Windows) Additional Core License","CCE161112 Licencias ArcGIS Server ArcGIS for Maritime for ArcGIS GIS Server Advanced (Windows) Additional Core License","UND","NO",7923799.7684999993]
["CCE162293","Licencias","ArcGIS Server","CCE162293 ArcGIS Utility Network Management for ArcGIS GIS Server Advanced (Windows) Up to Four Cores License ","CCE162293 ArcGIS Utility Network Management for ArcGIS GIS Server Advanced (Windows) Up to Four Cores License ","UND","NO",31695199.074000005]
["CCE162299","Licencias","ArcGIS Server","CCE162299 ArcGIS Utility Network Management for ArcGIS GIS Server Standard (Windows) Up to Four Cores License ","CCE162299 ArcGIS Utility Network Management for ArcGIS GIS Server Standard (Windows) Up to Four Cores License ","UND","NO",31695199.074000005]
["CCE162352","Licencias","ArcGIS Server","CCE162352 ArcGIS Utility Network Management for ArcGIS GIS Server Standard (Windows) Additional Core License ","CCE162352 ArcGIS Utility Network Management for ArcGIS GIS Server Standard (Windows) Additional Core License ","UND","NO",7923799.7685000012]
["CCE154251-N2","Licencias","ArcGIS Server","CCE154251-N2 Usuario nombrado Nivel 2 ArcGIS Enterprise Standard o Advanced Licencia Perpetua","CCE154251-N2 Usuario nombrado Nivel 2 ArcGIS Enterprise Standard o Advanced Licencia Perpetua","UND","NO",7825975.0800000001]
["CCE154252-N2T","Licencias","ArcGIS Server","CCE154252-N2T Usuario Nombrado Nivel 2 ArcGIS Enterprise Standard o Advanzado Term License","CCE154252-N2T Usuario Nombrado Nivel 2 ArcGIS Enterprise Standard o Advanzado Term License","UND","NO",1956493.77]
["CCE157558","Programa Educativo","Academic Departmental","CCE157558 Educational Academic Departmental Additional ArcGIS Online Service Credits (100,000 Credits)","CCE157558 Educational Academic Departmental Additional ArcGIS Online Service Credits (100,000 Credits)","AÑO","NO",401647.1508]
["CCE157570","Programa Educativo","Academic Departmental","CCE157570 Educational Academic Departmental Small Single Use Term License (5 Users)","CCE157570 Educational Academic Departmental Small Single Use Term License (5 Users)","AÑO","NO",1056522.0352]
["CCE157571","Programa Educativo","Academic Departmental","CCE157571 Educational Academic Departmental Medium Single Use Term License (50 Users)","CCE157571 Educational Academic Departmental Medium Single Use Term License (50 Users)","AÑO","NO",2113013.2716000001]
["CCE157572","Programa Educativo","Academic Departmental","CCE157572 Educational Academic Departmental Large Single Use Term License (100 Users)","CCE157572 Educational Academic Departmental Large Single Use Term License (100 Users)","AÑO","NO",4226026.5432000002]
["CCE157568","Programa Educativo","Administrative Use Departmental","CCE157568 Educational Administrative Use Departmental Small Single Use Term License (5 Users)","CCE157568 Educational Administrative Use Departmental Small Single Use Term License (5 Users)","AÑO","NO",10565066.358000001]
["CCE157569","Programa Educativo","Administrative Use Departmental","CCE157569 Educational Administrative Use Departmental Large Single Use Term License (100 Users)","CCE157569 Educational Administrative Use Departmental Large Single Use Term License (100 Users)","AÑO","NO",42260265.432000004]
["CCE157574","Programa Educativo","Administrative Use Departmental","CCE157574 Educational Administrative Use Departmental Medium Single Use Term License (50 Users)","CCE157574 Educational Administrative Use Departmental Medium Single Use Term License (50 Users)","AÑO","NO",21130132.716000002]
["CCE157577 ","Programa Educativo","Administrative Use Departmental","CCE157577  Educational Administrative Use Departmental Level 1 Additional Named User (0 Credits)","CCE157577  Educational Administrative Use Departmental Level 1 Additional Named User (0 Credits)","AÑO","NO",200838.9748]
["CCE157580","Programa Educativo","Administrative Use Departmental","CCE157580 Educational Administrative Use Departmental Level 2 Additional Named User (500 Credits)","CCE157580 Educational Administrative Use Departmental Level 2 Additional Named User (500 Credits)","AÑO","NO",1004133.2764]
["CCE157051","Programa Educativo","Site License","CCE157051 Programa Educativo Site License Acuerdo institucional de educación Small (500 Usuarios Académicos / 10 Usuarios Administrativos)","CCE157051 Programa Educativo Site License Acuerdo institucional de educación Small (500 Usuarios Académicos / 10 Usuarios Administrativos)","AÑO","NO",19806790.390391871]
["CCE157080","Programa Educativo","Site License","CCE157080 Programa Educativo Site License Acuerdo institucional de educación Medium (1000 Usuarios Académicos / 20 Usuarios Administrativos)","CCE157080 Programa Educativo Site License Acuerdo institucional de educación Medium (1000 Usuarios Académicos / 20 Usuarios Administrativos)","AÑO","NO",39613580.791359529]
["CCE157087","Programa Educativo","Site License","CCE157087 Programa Educativo Site License Acuerdo institucional de educación Large (5000 Usuarios Académicos / 100 Usuarios Administrativos)","CCE157087 Programa Educativo Site License Acuerdo institucional de educación Large (5000 Usuarios Académicos / 100 Usuarios Administrativos)","AÑO","NO",99033951.973110929]
["CCE150543","SaaS","Suscripción ArcGIS Online creditos adicionales y usuarios adicionales","CCE150543 GeoPlanner for ArcGIS (for use with ArcGIS Online); Includes 1 Named User Single Use Term License","CCE150543 GeoPlanner for ArcGIS (for use with ArcGIS Online); Includes 1 Named User Single Use Term License","AÑO","NO",1803693.2261439462]
["CCE151823","SaaS","Suscripción ArcGIS Online creditos adicionales y usuarios adicionales","CCE151823 Drone2Map for ArcGIS Annual Individual Subscription for ArcGIS Online includes one (1) ArcGIS Named User and 500 ArcGIS Online Service Credits","CCE151823 Drone2Map for ArcGIS Annual Individual Subscription for ArcGIS Online includes one (1) ArcGIS Named User and 500 ArcGIS Online Service Credits","AÑO","NO",5411079.6678560544]
["CCE153147","SaaS","Suscripción ArcGIS Online creditos adicionales y usuarios adicionales","CCE153147 ArcGIS Online Usuarios Nombrados Nivel 1 TermLic. Incluye 1 Usuario","CCE153147 ArcGIS Online Usuarios Nombrados Nivel 1 TermLic. Incluye 1 Usuario","AÑO","NO",371895.51000000007]
["CCE153147-10","SaaS","Suscripción ArcGIS Online creditos adicionales y usuarios adicionales","CCE153147-10 ArcGIS Online Usuarios Nombrados Nivel 1 TermLic. Incluye 10 Usuarios","CCE153147-10 ArcGIS Online Usuarios Nombrados Nivel 1 TermLic. Incluye 10 Usuarios","AÑO","NO",3718955.1]
["CCE153147-100","SaaS","Suscripción ArcGIS Online creditos adicionales y usuarios adicionales","CCE153147-100 ArcGIS Online Usuarios Nombrados Nivel 1 TermLic. Incluye 100 Usuarios","CCE153147-100 ArcGIS Online Usuarios Nombrados Nivel 1 TermLic. Incluye 100 Usuarios","AÑO","NO",36073864.469999999]
["CCE153148","SaaS","Suscripción ArcGIS Online creditos adicionales y usuarios adicionales","CCE153148 ArcGIS Online Usuarios nombrados Nivel 2 Term Lic. Incuye 1 Usuario, 500 créditos","CCE153148 ArcGIS Online Usuarios nombrados Nivel 2 Term Lic. Incuye 1 Usuario, 500 créditos","AÑO","NO",1859477.55]
["CCE153148-10","SaaS","Suscripción ArcGIS Online creditos adicionales y usuarios adicionales","CCE153148-10 ArcGIS Online Usuarios nombrados Nivel 2 Term Lic. Incuye 10 Usuarios,5000 creditos","CCE153148-10 ArcGIS Online Usuarios nombrados Nivel 2 Term Lic. Incuye 10 Usuarios,5000 creditos","AÑO","NO",18036932.240287896]
["CCE153148-5","SaaS","Suscripción ArcGIS Online creditos adicionales y usuarios adicionales","CCE153148-5 ArcGIS Online Usuarios nombrados Nivel 2 Term Lic. Incuye 5 Usuarios, 2500 creditos","CCE153148-5 ArcGIS Online Usuarios nombrados Nivel 2 Term Lic. Incuye 5 Usuarios, 2500 creditos","AÑO","NO",9297387.75]
["CCE153391","SaaS","Suscripción ArcGIS Online creditos adicionales y usuarios adicionales","CCE153391 Insights for ArcGIS Enterprise Perpetual License  $/year/user","CCE153391 Insights for ArcGIS Enterprise Perpetual License  $/year/user","AÑO","NO",7591195.8233696874]
["CCE153418","SaaS","Suscripción ArcGIS Online creditos adicionales y usuarios adicionales","CCE153418 ArcGIS Online Service Credits; Block of 1,000","CCE153418 ArcGIS Online Service Credits; Block of 1,000","AÑO","NO",371895.51000000007]
["CCE154296","SaaS","Suscripción ArcGIS Online creditos adicionales y usuarios adicionales","CCE154296 GeoPlanner for ArcGIS Enterprise 1 User name Perpetual Lic","CCE154296 GeoPlanner for ArcGIS Enterprise 1 User name Perpetual Lic","UND","NO",7214772.8940000013]
["CCE154297","SaaS","Suscripción ArcGIS Online creditos adicionales y usuarios adicionales","CCE154297 GeoPlanner for ArcGIS Enterprise 1 User name Term License","CCE154297 GeoPlanner for ArcGIS Enterprise 1 User name Term License","AÑO","NO",1803693.2261439462]
["CCE154332","SaaS","Suscripción ArcGIS Online creditos adicionales y usuarios adicionales","CCE154332Insights for ArcGIS in ArcGIS Enterprise Term License $/year/user","CCE154332Insights for ArcGIS in ArcGIS Enterprise Term License $/year/user","AÑO","NO",1897798.9584863679]
["C-CCE-GROUP","Servicios","Entrenamiento","C-CCE-GROUP Grupal (1 a 10 estudiantes)","C-CCE-GROUP Grupal (1 a 10 estudiantes)","DIA","SI",2591145.27]
["C-CCE-IND","Servicios","Entrenamiento","C-CCE-IND Individual (1 estudiante)","C-CCE-IND Individual (1 estudiante)","DIA","SI",370163.61]
["CCE_AGOL_WLK1","Servicios","Paquete de servicios","CCE_AGOL_WLK1 Web Launch Kit Región 1","CCE_AGOL_WLK1 Web Launch Kit Región 1","UND","SI",3192661.3949999996]
["CCE_AGOL_WLK2","Servicios","Paquete de servicios","CCE_AGOL_WLK2 Web Launch Kit Región 2","CCE_AGOL_WLK2 Web Launch Kit Región 2","UND","SI",3192661.3949999996]
["CCE_AGOL_WLK3","Servicios","Paquete de servicios","CCE_AGOL_WLK3 Web Launch Kit Región 3","CCE_AGOL_WLK3 Web Launch Kit Región 3","UND","SI",3192661.3949999996]
["CCE_AGOL_WLK4","Servicios","Paquete de servicios","CCE_AGOL_WLK4 Web Launch Kit Región 4","CCE_AGOL_WLK4 Web Launch Kit Región 4","UND","SI",3192661.3949999996]
["CCE_EMCS_MYA","Servicios","Paquete de servicios","CCE_EMCS_MYA Monitoreo y Administración de plataforma en la nube por mes","CCE_EMCS_MYA Monitoreo y Administración de plataforma en la nube por mes","UND","SI",8181674.9999999991]
["CCE_PAQ_CP","Servicios","Paquete de servicios","CCE_PAQ_CP Servicios profesionales para la elaboración del Capacity Plnning. Duración 5 dias","CCE_PAQ_CP Servicios profesionales para la elaboración del Capacity Plnning. Duración 5 dias","UND","SI",7442684.9999999991]
["CCE_PAQ_EGHC","Servicios","Paquete de servicios","CCE_PAQ_EGHC Paquete de servicios profesionales especializado, para realiza revisión y evaluación al Sistema de Información Geográfica (SIG)","CCE_PAQ_EGHC Paquete de servicios profesionales especializado, para realiza revisión y evaluación al Sistema de Información Geográfica (SIG)","UND","SI",9303356.25]
["CCEPRG_EEAP_1510.1","Servicios","Paquete de servicios","CCEPRG_EEAP_1510.1 EEAP (Esri Enterprise Advantage Program)","CCEPRG_EEAP_1510.1 EEAP (Esri Enterprise Advantage Program)","UND","SI",38213949.149999999]
["CCE_PQ_INAV","Servicios","Soporte Técnico y Actualización","CCE_PQ_INAV Paquete de Incidentes soporte avanzado","CCE_PQ_INAV Paquete de Incidentes soporte avanzado","UND","SI",5987940.75]
["CCE_SOP_AV","Servicios","Soporte Técnico y Actualización","CCE_SOP_AV Soporte avanzado","CCE_SOP_AV Soporte avanzado","UND","SI",26129195.999999996]
["CCE159044","SaaS","Suscripción ArcGIS Online creditos adicionales y usuarios adicionales","CCE159044  Insights for ArcGIS in ArcGIS Online Term License   $/year/user","CCE159044  Insights for ArcGIS in ArcGIS Online Term License   $/year/user","AÑO","NO",1897798.9584863679]
["CCE157067","Programa Educativo","Administrative Use Departmental","CCE157067 Educational Administrative Use Departmental Small Term Concurrent Use License (5 Users)","CCE157067 Educational Administrative Use Departmental Small Term Concurrent Use License (5 Users)","AÑO","NO",10565066.358000001]
["CCE157510","Programa Educativo","Administrative Use Departmental","CCE157510 Educational Administrative Use Departmental Medium Term Concurrent Use License (50 Users)","CCE157510 Educational Administrative Use Departmental Medium Term Concurrent Use License (50 Users)","AÑO","NO",21130132.716000002]
["CCE157512","Programa Educativo","Administrative Use Departmental","CCE157512 Educational Administrative Use Departmental Large Term Concurrent Use License (100 Users)","CCE157512 Educational Administrative Use Departmental Large Term Concurrent Use License (100 Users)","AÑO","NO",42260265.432000004]
["CCE157060","Programa Educativo","Academic Departmental","CCE157060 Educational Academic Departmental Small Term Concurrent Use License (5 Users)","CCE157060 Educational Academic Departmental Small Term Concurrent Use License (5 Users)","AÑO","NO",1056522.0352]
["CCE157062","Programa Educativo","Academic Departmental","CCE157062 Educational Academic Departmental Medium Term Concurrent Use License (50 Users)","CCE157062 Educational Academic Departmental Medium Term Concurrent Use License (50 Users)","AÑO","NO",2113013.2716000001]
["CCE157066","Programa Educativo","Academic Departmental","CCE157066 Educational Academic Departmental Large Term Concurrent Use License (100 Users)","CCE157066 Educational Academic Departmental Large Term Concurrent Use License (100 Users)","AÑO","NO",4226026.5432000002]

{"sheet":"ListasAutomaticas","index":3,"n_rows":15,"n_cols":7,"rows_kept":15,"cut":false,"hidden":true,"merged":[]}
["ListaCategoria","1Familia","1Nombre","2Familia","2Nombre","3Familia","3Nombre"]
["Licencias","Suscripción ArcGIS Online creditos adicionales y usuarios adicionales","CCE157060 Educational Academic Departmental Small Term Concurrent Use License (5 Users)","Suscripción ArcGIS Online creditos adicionales y usuarios adicionales","CCE150543 GeoPlanner for ArcGIS (for use with ArcGIS Online); Includes 1 Named User Single Use Term License","Entrenamiento","CCE_AGOL_WLK1 Web Launch Kit Región 1"]
["Programa Educativo",null,"CCE157062 Educational Academic Departmental Medium Term Concurrent Use License (50 Users)",null,"CCE151823 Drone2Map for ArcGIS Annual Individual Subscription for ArcGIS Online includes one (1) ArcGIS Named User and 500 ArcGIS Online Service Credits","Paquete de servicios","CCE_AGOL_WLK2 Web Launch Kit Región 2"]
["SaaS",null,"CCE157066 Educational Academic Departmental Large Term Concurrent Use License (100 Users)",null,"CCE153147 ArcGIS Online Usuarios Nombrados Nivel 1 TermLic. Incluye 1 Usuario","Soporte Técnico y Actualización","CCE_AGOL_WLK3 Web Launch Kit Región 3"]
["Servicios",null,"CCE157558 Educational Academic Departmental Additional ArcGIS Online Service Credits (100,000 Credits)",null,"CCE153147-10 ArcGIS Online Usuarios Nombrados Nivel 1 TermLic. Incluye 10 Usuarios",null,"CCE_AGOL_WLK4 Web Launch Kit Región 4"]
[null,null,"CCE157570 Educational Academic Departmental Small Single Use Term License (5 Users)",null,"CCE153147-100 ArcGIS Online Usuarios Nombrados Nivel 1 TermLic. Incluye 100 Usuarios",null,"CCE_EMCS_MYA Monitoreo y Administración de plataforma en la nube por mes"]
[null,null,"CCE157571 Educational Academic Departmental Medium Single Use Term License (50 Users)",null,"CCE153148 ArcGIS Online Usuarios nombrados Nivel 2 Term Lic. Incuye 1 Usuario, 500 créditos",null,"CCE_PAQ_CP Servicios profesionales para la elaboración del Capacity Plnning. Duración 5 dias"]
[null,null,"CCE157572 Educational Academic Departmental Large Single Use Term License (100 Users)",null,"CCE153148-10 ArcGIS Online Usuarios nombrados Nivel 2 Term Lic. Incuye 10 Usuarios,5000 creditos",null,"CCE_PAQ_EGHC Paquete de servicios profesionales especializado, para realiza revisión y evaluación al Sistema de Información Geográfica (SIG)"]
[null,null,null,null,"CCE153148-5 ArcGIS Online Usuarios nombrados Nivel 2 Term Lic. Incuye 5 Usuarios, 2500 creditos",null,"CCEPRG_EEAP_1510.1 EEAP (Esri Enterprise Advantage Program)"]
[null,null,null,null,"CCE153391 Insights for ArcGIS Enterprise Perpetual License  $/year/user"]
[null,null,null,null,"CCE153418 ArcGIS Online Service Credits; Block of 1,000"]
[null,null,null,null,"CCE154296 GeoPlanner for ArcGIS Enterprise 1 User name Perpetual Lic"]
[null,null,null,null,"CCE154297 GeoPlanner for ArcGIS Enterprise 1 User name Term License"]
[null,null,null,null,"CCE154332Insights for ArcGIS in ArcGIS Enterprise Term License $/year/user"]
[null,null,null,null,"CCE159044  Insights for ArcGIS in ArcGIS Online Term License   $/year/user"]

{"sheet":"Listas","index":4,"n_rows":104,"n_cols":17,"rows_kept":104,"cut":false,"hidden":true,"merged":[]}
["Categoria","Licenciasfamilia","SaaSfamilia","ProgramaEducativofamilia","Serviciosfamilia","LicenciasArcGISDesktopnombre","LicenciasArcGISServernombre","LicenciasArcGISMobilenombre","SaaSSuscripciónArcGISOnlinecreditosadicionalesyusuariosadicionalesnombre","ProgramaEducativoSiteLicense","ProgramaEducativoAdministrativeUseDepartmentalnombre","ProgramaEducativoAcademicDepartmentalnombre","ProgramaEducativoSuscripciónArcGISOnlinecreditosadicionalesyusuariosadicionalesnombre","ProgramaEducativoSiteLicensenombre","ServiciosEntrenamientonombre","ServiciosPaquetedeserviciosnombre","ServiciosSoporteTécnicoyActualizaciónnombre"]
["Licencias","ArcGIS Desktop","Suscripción ArcGIS Online creditos adicionales y usuarios adicionales","Site License","Entrenamiento","CCE122086 ArcGIS for Desktop Advanced Single Use License","CCE160483 ArcGIS GIS Server Advanced (Windows) Up to Four Cores License","CCE114454 ArcPad License","CCE153148-5 ArcGIS Online Usuarios nombrados Nivel 2 Term Lic. Incuye 5 Usuarios, 2500 creditos","CCE157051 Programa Educativo Site License Acuerdo institucional de educación Small (500 Usuarios Académicos / 10 Usuarios Administrativos)","CCE157568 Educational Administrative Use Departmental Small Term License (5 Users)","CCE157570 Educational Academic Departmental Small Term License (5 Users)","CCE131788 ArcGIS Online Level 1 Plan for Education and Research Lab Kit Additional 5 Name User","CCE157051 Programa Educativo Site License Acuerdo institucional de educación Small (500 Usuarios Académicos / 10 Usuarios Administrativos)","C-CCE-IND Individual (1 estudiante)","CCE_AGOL_WLK1 Web Launch Kit Región 1","CCE_SOP_AV Soporte avanzado"]
["SaaS","ArcGIS Server","","Administrative Use Departmental","Paquete de servicios","CCE93206 ArcGIS for Desktop Standard Single Use License","CCE160513 ArcGIS GIS Server Standard (Windows) Up to Four Cores License","","CCE153148-10 ArcGIS Online Usuarios nombrados Nivel 2 Term Lic. Incuye 10 Usuarios,5000 creditos","CCE157080 Programa Educativo Site License Acuerdo institucional de educación Medium (1000 Usuarios Académicos / 20 Usuarios Administrativos)","CCE157574 Educational Administrative Use Departmental Medium Term License (50 Users)","CCE157571 Educational Academic Departmental Medium Term License (50 Users)","CCE131789 ArcGIS Online Level 2 Plan for Educational Teaching and Research Lab Kit Additional 5 Named Users","CCE157080 Programa Educativo Site License Acuerdo institucional de educación Medium (1000 Usuarios Académicos / 20 Usuarios Administrativos)","C-CCE-GROUP Grupal (1 a 10 estudiantes)","CCE_AGOL_WLK2 Web Launch Kit Región 2","CCE_PQ_INAV Paquete de Incidentes soporte avanzado"]
["Programa Educativo",null,"","Academic Departmental","Soporte Técnico y Actualización","CCE93198 ArcGIS for Desktop Basic Single Use License","CCE160489 ArcGIS GIS Server Basic (Windows) Up to Four Cores License","","CCE153147-10 ArcGIS Online Usuarios Nombrados Nivel 1 TermLic. Incluye 10 Usuarios","CCE157087 Programa Educativo Site License Acuerdo institucional de educación Large (5000 Usuarios Académicos / 100 Usuarios Administrativos)","CCE157569 Educational Administrative Use Departmental Large Term License (100 Users)","CCE157572 Educational Academic Departmental Large Term License (100 Users)","CCE131806 ArcGIS Online Level 1 Education Teaching and Research Lab Kit; 5 Named Users; 5.000 Service Credits","CCE157087 Programa Educativo Site License Acuerdo institucional de educación Large (5000 Usuarios Académicos / 100 Usuarios Administrativos)","","CCE_AGOL_WLK3 Web Launch Kit Región 3",""]
["Servicios","","",null,"","CCE100475 ArcGIS Schematics for Desktop Single License","CCE160899 ArcGIS GIS Server Advanced (Windows) Additional Core License","","CCE153147-100 ArcGIS Online Usuarios Nombrados Nivel 1 TermLic. Incluye 100 Usuarios",null,"CCE157577  Educational Administrative Use Departmental Level 1 Additional Named User (0 Credits)","CCE157558 Educational Academic Departmental Additional ArcGIS Online Service Credits (100,000 Credits)","CCE131807 ArcGIS Online Level 2 Plan Education & Research Lab Kit; Includ 50 Name User; 12.500 Service Credit",null,"","CCE_AGOL_WLK4 Web Launch Kit Región 4",""]
["","","",null,"","CCE111560 ArcGIS Workflow Manager for Desktop Single License","CCE160900 ArcGIS GIS Server Standard (Windows) Additional Core License","","CCE151823 Drone2Map for ArcGIS Annual Individual Subscription for ArcGIS Online includes one (1) ArcGIS Named User and 500 ArcGIS Online Service Credits",null,"CCE157580 Educational Administrative Use Departmental Level 2 Additional Named User (500 Credits)","","CCE136341 ArcGIS Online Level 3 Plan Educ. Teaching & Research Lab Kit; 100 Named Users; 12.500 Service Credit","","","CCEPRG_EEAP_1510.1 EEAP (Esri Enterprise Advantage Program)",""]
["","","","","","CCE93164 ArcGIS Tracking Analyst for Desktop Single License","CCE160901 ArcGIS GIS Server Basic (Windows) Additional Core License","","CCE154332 Insights for ArcGIS Term License $/year/user",null,null,"","CCE136342 ArcGIS Online Level 4 Plan for Educational Teaching and Research Lab Kit; 250 Named U- 25.000 credit","","","CCE_EMCS_MYA Monitoreo y Administración de plataforma en la nube por mes",""]
["","","","","","CCE93168 ArcGIS Spatial Analyst for Desktop Single License","CCE160506 ArcGIS Data Interoperability for Server Enterprise Advanced , Up 4 Cores Licen","","CCE153391 Insights for ArcGIS Perpetual License/user",null,null,"","CCE136343 ArcGIS Online Level 5 Plan Educ. Teaching & Research Lab Kit; 500 Named Users; 37.500 Service Credits","","","CCE_PAQ_EGHC Paquete de servicios profesionales especializado, para realiza revisión y evaluación al Sistema de Información Geográfica (SIG)",""]
["","","","","","CCE93172 ArcGIS 3D Analyst for Desktop Single License","CCE161019 ArcGIS Data Interoperability for ArcGIS GIS Server Advanced (Windows) Additional Core License","","CCE150543 GeoPlanner for ArcGIS (for use with ArcGIS Online); Includes 1 Named User Single Use Term License",null,null,"","CCE136344 ArcGIS Online Level 6 Plan Educ. Teaching & Research Lab Kit; 1.000 Named Users; 62,500 Service Credits","","","CCE_PAQ_CP Servicios profesionales para la elaboración del Capacity Plnning. Duración 5 dias",""]
["","","","","","CCE93176 ArcGIS Geostatistical Analyst for Desktop Single License","CCE160507 ArcGIS Data Interoperability for ArcGIS GIS Server Standard (Windows) Up to Four Cores License","","CCE154297 GeoPlanner for ArcGIS Enterprise 1 User name Term License",null,null,"","CCE136345 ArcGIS Online Level 7 Plan Educ. Teaching & Research Lab Kit; 1500 Named Users; 75000 Service Credits","","",null,""]
["","","","","","CCE93194 ArcGIS Publisher for Desktop Single License","CCE161020 ArcGIS Data Interoperability for ArcGIS GIS Server Standard (Windows) Additional Core License","","CCE154296 GeoPlanner for ArcGIS Enterprise 1 User name Perpetual Lic",null,null,"","","","","",""]
["","","","","","CCE98131 ArcGIS Data Interoperability for Desktop Single License","CCE160509 ArcGIS Network Analyst for ArcGIS GIS Server Standard (Windows) Up to Four Cores License","","CCE153148 ArcGIS Online Usuarios nombrados Nivel 2 Term Lic. Incuye 1 Usuario, 500 créditos",null,null,"","","","","",""]
["","","","","","CCE99045 ArcGIS Data Reviewer for Desktop Single License","CCE161022 ArcGIS Network Analyst for ArcGIS GIS Server Standard (Windows) Additional Core License","","CCE153147 ArcGIS Online Usuarios Nombrados Nivel 1 TermLic. Incluye 1 Usuario",null,null,"","","","","",""]
["","","","","","CCE99734 ArcGIS Network Analyst for Desktop Single License","CCE160514 ArcGIS Workflow Manager for ArcGIS GIS Server Advanced (Windows) Up to Four Cores License","","CCE153418 ArcGIS Online Service Credits; Block of 1,000",null,null,"","","","","",""]
["","","","","","CCE127570 Esri CityEngine Basic Single for Linux License","CCE161047 ArcGIS Workflow Manager for ArcGIS GIS Server Advanced (Windows) Additional Core License","","",null,null,"","","","","",""]
["","","","","","CCE127611 Esri CityEngine Advanced Single for Linux License","CCE160518 ArcGIS Workflow Manager for ArcGIS GIS Server Standard (Windows) Up to Four Cores License","","CCE153148-5 ArcGIS Online Usuarios nombrados Nivel 2 Term Lic. Incuye 5 Usuarios, 2500 creditos",null,null,"","","","","",""]
["","","","","","CCE127614 Esri CityEngine Basic Single for Macintosh License","CCE161048 ArcGIS Workflow Manager for ArcGIS GIS Server Standard (Windows) Additional Core License","","CCE153148-10 ArcGIS Online Usuarios nombrados Nivel 2 Term Lic. Incuye 10 Usuarios,5000 creditos",null,null,"","","","","",""]
["","","","","","CCE127615 Esri CityEngine Advanced Single for Macintosh License","CCE160491 ArcGIS Data Reviewer for ArcGIS GIS Server Advanced (Windows) Up to Four Cores License","","CCE153147-10 ArcGIS Online Usuarios Nombrados Nivel 1 TermLic. Incluye 10 Usuarios",null,null,"","","","","",""]
["","","","","","CCE127672 Esri CityEngine Advanced Single for 64-Bit Windows License","CCE161078 ArcGIS Data Reviewer for ArcGIS GIS Server Advanced (Windows) Additional Core License","","CCE153147-100 ArcGIS Online Usuarios Nombrados Nivel 1 TermLic. Incluye 100 Usuarios",null,null,"","","","","",""]
["","","","","","CCE127673 Esri CityEngine Basic Single for 64-Bit Windows License","CCE160493 ArcGIS Data Reviewer for ArcGIS GIS Server Standard (Windows) Up to Four Cores License","","CCE151823 Drone2Map for ArcGIS Annual Individual Subscription for ArcGIS Online includes one (1) ArcGIS Named User and 500 ArcGIS Online Service Credits",null,null,"","","","","",""]
["","","","","","CCE133016 ArcGIS for Aviation Airports Bundle Single Use License","CCE161079 ArcGIS Data Reviewer for ArcGIS GIS Server Standard (Windows) Additional Core","","CCE154332 Insights for ArcGIS Term License $/year/user",null,null,"","","","","",""]
["","","","","","CCE133006 ArcGIS for Aviation Airports Single Licen","CCE160524 Esri Roads and Highways for ArcGIS GIS Server Advanced (Windows) Up to Four Cores License","","CCE153391 Insights for ArcGIS Perpetual License/user",null,null,"","","","","",""]
["","","","","","CCE121834 ArcGIS for Aviation Charting for Desktop Single Use License","CCE161083 Esri Roads and Highways for ArcGIS GIS Server Advanced (Windows) Additional Core License","","CCE150543 GeoPlanner for ArcGIS (for use with ArcGIS Online); Includes 1 Named User Single Use Term License",null,null,"","","","","",""]
["","","","","","CCE133013 ArcGIS for Aviation Charting Bundle Single Licen","CCE160525 Esri Roads and Highways for ArcGIS GIS Server Standard (Windows) Up to Four Cores License","","CCE154297 GeoPlanner for ArcGIS Enterprise 1 User name Term License",null,null,"","","","","",""]
["","","","","","CCE139825 StreetMap Premium for ArcGIS for Desktop Colombia HERE Single Use Term License","CCE161082 Esri Roads and Highways for ArcGIS GIS Server Standard (Windows) Additional Core License","","CCE154296 GeoPlanner for ArcGIS Enterprise 1 User name Perpetual Lic",null,null,"","","","","",""]
["","","","","","CCE139841 StreetMap Premium for ArcGIS for Desktop Map Display Geocoding Colombia HERE Single Use Term Lic","CCE160454 ArcGIS GIS Server Workgroup Advanced Up to Two Cores License","","CCE153148 ArcGIS Online Usuarios nombrados Nivel 2 Term Lic. Incuye 1 Usuario, 500 créditos",null,null,"","","","","",""]
["","","","","","CCE154283 ArcGIS Desktop All Extensions Single Use (Bundle) Perpetual License","CCE160894 ArcGIS GIS Server Workgroup Advanced Additional Core License","","CCE153147 ArcGIS Online Usuarios Nombrados Nivel 1 TermLic. Incluye 1 Usuario",null,null,"","","","","",""]
["","","","","","CCE_DATACAPTURE_PERP-ArcGIS Bundle for Data Capture","CCE160455 ArcGIS GIS Server Workgroup Standard Up to Two Cores License","","CCE153418 ArcGIS Online Service Credits; Block of 1,000",null,null,"","","","","",""]
["","","","","","CCE_DATACAPTURE_TERM-ArcGIS Bundle for Data Capture TERM","CCE160895 ArcGIS GIS Server Workgroup Standard Additional Core License","","",null,null,"","","","","",""]
["","","","","","CCE100477 Licencias  ArcGIS Desktop ArcGIS Schematics for Desktop Concurrent License","CCE160490 ArcGIS GIS Server Workgroup Basic Maximum Four Cores License","",{"$f":"I2=I16","v":true},null,null,"","","","","",""]
["","","","","","CCE111290 Licencias  ArcGIS Desktop ArcGIS Workflow Manager for Desktop Concurrent License","CCE160503 ArcGIS Data Interoperability for ArcGIS GIS Server Workgroup Advanced Maximum Four Cores License","",{"$f":"I3=I17","v":true},null,null,"","","","","",""]
["","","","","","CCE121833  Licencias  ArcGIS Desktop ArcGIS for Aviation Charting for Desktop Concurrent Use License ","CCE160505 ArcGIS Data Interoperability for ArcGIS GIS Server Workgroup Standard Maximum Four Cores License","",true,null,null,"","","","","",""]
["","","","","","CCE127612 Licencias  ArcGIS Desktop  Esri CityEngine Advanced Concurrent for Linux License","CCE160510 ArcGIS Network Analyst for ArcGIS GIS Server Workgroup Standard Maximum Four Cores License","",true,null,null,"","","","","",""]
["","","","","","CCE127616 Licencias  ArcGIS Desktop Esri CityEngine Advanced Concurrent for Macintosh License","CCE160516 ArcGIS Workflow Manager for ArcGIS GIS Server Workgroup Advanced Maximum Four Cores License","",true,null,null,"","","","","",""]
["","","","","","CCE127658 Licencias  ArcGIS Desktop  Esri CityEngine Advanced Concurrent for 64-Bit Windows License","CCE160520 ArcGIS Workflow Manager for ArcGIS GIS Server Workgroup Standard Maximum Four Cores License","",true,null,null,"","","","","",""]
["","","","","","CCE133005  Licencias  ArcGIS Desktop  ArcGIS for Aviation Airports Concurrent Licen","CCE160492 ArcGIS Data Reviewer for ArcGIS GIS Server Workgroup Advanced Maximum Four Cores License","",true,null,null,"","","","","",""]
["","","","","","CCE133014  Licencias  ArcGIS Desktop  ArcGIS for Aviation Charting Bundle Concurrent Licen","CCE160494 ArcGIS Data Reviewer for ArcGIS GIS Server Workgroup Standard Maximum Four Cores License","",true,null,null,"","","","","",""]
["","","","","","CCE133017  Licencias  ArcGIS Desktop ArcGIS for Aviation Airports Bundle Concurrent Use License","CCE160501 Esri Roads and Highways for ArcGIS GIS Server Workgroup Advanced Maximum Four Cores License","",true,null,null,"","","","","",""]
["","","","","","CCE139826  Licencias  ArcGIS Desktop StreetMap Premium for ArcGIS for Desktop Colombia HERE Concurrent Use Term License","CCE160502 Esri Roads and Highways for ArcGIS GIS Server Workgroup Standard Maximum Four Cores License","",true,null,null,"","","","","",""]
["","","","","","CCE139842  Licencias  ArcGIS Desktop StreetMap Premium for ArcGIS for Desktop Map Display Geocoding Colombia HERE Concurrent Use Term Lic","CCE114454 ArcPad License","",true,null,null,"","","","","",""]
["","","","","","CCE52382 Licencias  ArcGIS Desktop  ArcGIS for Desktop Advanced Concurrent License","CCE139827 StreetMap Premium for ArcGIS for Server Enterprise Colombia HERE Up to Four Core Term License","",true,null,null,"","","","","",""]
["","","","","","CCE86353 Licencias  ArcGIS Desktop  ArcGIS for Desktop Standard Concurrent License","CCE139828 StreetMap Premium for ArcGIS for Server Enterprise Colombia HERE Two Additional Cores Term","",true,null,null,"","","","","",""]
["","","","","","CCE87143 Licencias  ArcGIS Desktop ArcGIS for Desktop Basic Concurrent License","CCE139843 StreetMap Premium for ArcGIS Server Enterp Map Display Geocoding Colombia HERE Up to4 CoresTerm Lic","","",null,null,"","","","","",""]
["","","","","","CCE88282 Licencias  ArcGIS Desktop  ArcGIS Spatial Analyst for Desktop Concurrent License","CCE139844 StreetMap Premium for ArcGIS Server Enterp Map Display Geocoding Colombia HERE 2 Add Cores TermLic","","",null,null,"","","","","",""]
["","","","","","CCE88283 Licencias  ArcGIS Desktop  ArcGIS 3D Analyst for Desktop Concurrent License","CCE160458 ArcGIS Enterprise Advanced (Windows) Up to Four Cores License","","",null,null,"","","","","",""]
["","","","","","CCE88284 Licencias  ArcGIS Desktop  ArcGIS Geostatistical Analyst for Desktop Concurrent License","CCE160463 ArcGIS Enterprise Standard (Windows) Up to Four Cores License","","",null,null,"","","","","",""]
["","","","","","CCE90321 Licencias  ArcGIS Desktop ArcGIS Publisher for Desktop Concurrent License","CCE160450 ArcGIS Enterprise Workgroup Advanced Up to Two Cores License","","",null,null,"","","","","",""]
["","","","","","CCE91605 Licencias  ArcGIS Desktop  ArcGIS Tracking Analyst for Desktop Concurrent License","CCE160452 ArcGIS Enterprise Workgroup Standard Up to Two Cores License","","",null,null,"","","","","",""]
["","","","","","CCE98133 Licencias  ArcGIS Desktop ArcGIS Data Interoperability for Desktop Concurrent License","CCE160470 ArcGIS GeoAnalytics Server (Windows) Up to Four Cores License","","",null,null,"","","","","",""]
["","","","","","CCE99047 Licencias  ArcGIS Desktop ArcGIS Data Reviewer for Desktop Concurrent License","CCE160031 ArcGIS GeoAnalytics Server (Windows) Additional Core (up to 32 per server) License","","",null,null,"","","","","",""]
["","","","","","CCE99736 Licencias  ArcGIS Desktop ArcGIS Network Analyst for Desktop Concurrent License","CCE160037 ArcGIS GeoAnalytics Server (Windows) Additional Core (more than 32 per Server) License","","",null,null,"","","","","",""]
["","","","","","CCE128884 Licencias  ArcGIS Desktop Esri Roads and Highways for Desktop Single Licen","CCE160472 ArcGIS GeoAnalytics Server Workgroup Up to Four Cores License","","",null,null,"","","","","",""]
["","","","","","CCE128890 Licencias  ArcGIS Desktop Esri Roads and Highways for Desktop Concurrent Licen","CCE160474 ArcGIS GeoEvent Server (Windows) Up to Four Cores License","","",null,null,"","","","","",""]
["","","","","","CCE159049 Licencias  ArcGIS Desktop ArcGIS Image Analyst for ArcGIS Pro Single Use License","CCE161089 ArcGIS GeoEvent Server (Windows) Additional Core (up to 32 per server) License","","",null,null,"","","","","",""]
["","","","","","CCE159050 Licencias  ArcGIS Desktop ArcGIS Image Analyst for ArcGIS Pro Concurrent Use License","CCE160054 ArcGIS GeoEvent Server (Windows) Additional Core (more than 32 per Server) License","","",null,null,"","","","","",""]
["","","","","","CCE153359 Licencias  ArcGIS Desktop ArcGIS Pipeline Referencing for Desktop Single Use License","CCE160475 ArcGIS GeoEvent Server Workgroup Up to Four Cores License","","",null,null,"","","","","",""]
["","","","","","CCE162412 Licencias  ArcGIS Desktop ArcGIS Pipeline Referencing for Desktop Concurrent Use License","CCE160478 ArcGIS Image Server (Windows) Up to Four Cores License","","",null,null,"","","","","",""]
["","","","","","CCE130214 Licencias  ArcGIS Desktop ArcGIS for Maritime Bathymetry for Desktop Concurrent Use License","CCE161055 ArcGIS Image Server (Windows) Additional Core (up to 32 per server) License","","",null,null,"","","","","",""]
["","","","","","CCE130941 Licencias  ArcGIS Desktop ArcGIS for Maritime Bathymetry for Desktop Bundle Concurrent Use License","CCE160033 ArcGIS Image Server (Windows) Additional Core (more than 32 per Server) License","","",null,null,"","","","","",""]
["","","","","","CCE121839 Licencias  ArcGIS Desktop ArcGIS For Maritime Charting for Desktop Concurrent Use License","CCE160480 ArcGIS Image Server Workgroup Up to Four Cores License","","",null,null,"","","","","",""]
["","","","","","CCE121840 Licencias  ArcGIS Desktop ArcGIS For Maritime Charting for Desktop Single Use License","CCE154251-N2-5 5 Usuarios nombrados Nivel 2 ArcGIS Enterprise Standard o Advanced Licencia Perpetua","","",null,null,"","","","","",""]
["","","","","","CCE130215 Licencias  ArcGIS Desktop ArcGIS for Maritime Bathymetry for Desktop Single Use License","CCE154251-N2-50 50 Usuarios nombrados Nivel 2 ArcGIS Enterprise Standard o Avanzado Licencia Perpetua","","",null,null,"","","","","",""]
["","","","","","CCE130940 Licencias  ArcGIS Desktop ArcGIS for Maritime Bathymetry for Desktop Bundle Single Use License","CCE154252-N2T-5 5 Usuarios Nombrados Nivel 2 ArcGIS Enterprise Standard o Advanzado Term License","","",null,null,"","","","","",""]
["","","","","","CCE158381 Licencias  ArcGIS Desktop ArcGIS for Maritime Charting for Desktop Bundle Single Use License","CCE154252-N2T-50 50 Usuarios Nombrados Nivel 2 ArcGIS Enterprise Standard o Advanzado Term License","","",null,null,"","","","","",""]
["","","","","",null,"CCE_EMCS_ST_30 ArcGIS Enterprise Cloud Server (IaaS) por 30 días – ArcGIS Standard","","",null,null,"","","","","",""]
["","","","","",null,"CCE_EMCS_ST_90 ArcGIS Enterprise Cloud Server (IaaS) por 90 días – ArcGIS Standard","","",null,null,"","","","","",""]
["","","","","",null,"CCE_EMCS_ST_365 ArcGIS Enterprise Cloud Server (IaaS) por 365 días – ArcGIS Standard","","",null,null,"","","","","",""]
["","","","","","","CCE_EMCS_AV_30 ArcGIS Enterprise Cloud Server (IaaS) por 30 días – ArcGIS Advanced","","",null,null,"","","","","",""]
["","","","","","","CCE_EMCS_AV_90 ArcGIS Enterprise Cloud Server (IaaS) por 90 días – ArcGIS Advanced","","",null,null,"","","","","",""]
["","","","","","","CCE_EMCS_AV_365 ArcGIS Enterprise Cloud Server (IaaS) por 365 días – ArcGIS Advanced","","",null,null,"","","","","",""]
["","","","","","","CCE154251-N2 Usuario nombrado Nivel 2 ArcGIS Enterprise Standard o Advanced Licencia Perpetua","","",null,null,"","","","","",""]
["","","","","","","CCE154252-N2T Usuario Nombrado Nivel 2 ArcGIS Enterprise Standard o Advanzado Term License","","",null,null,"","","","","",""]
["","","","","","","CCE153472 Licencias ArcGIS Server ArcGIS Pipeline Referencing for ArcGIS GIS Server Standard (Windows) Up to Four Cores License","","",null,null,"","","","","",""]
["","","","","","","CCE153473 Licencias ArcGIS Server ArcGIS Pipeline Referencing for ArcGIS GIS Server Advanced (Windows) Up to Four Cores License","","",null,null,"","","","","",""]
["","","","","","","CCE153476 Licencias ArcGIS Server ArcGIS Pipeline Referencing for ArcGIS GIS Server Standard (Windows) Additional Core License","","",null,null,"","","","","",""]
["","","","","","","CCE153477 Licencias ArcGIS Server ArcGIS Pipeline Referencing for ArcGIS GIS Server Advanced (Windows) Additional Core License","","",null,null,"","","","","",""]
["","","","","","","CCE153551 Licencias ArcGIS Server ArcGIS Pipeline Referencing for ArcGIS GIS Server Workgroup Standard Up to Four Cores License","","",null,null,"","","","","",""]
["","","","","","","CCE153552 Licencias ArcGIS Server ArcGIS Pipeline Referencing for ArcGIS GIS Server Workgroup Advanced Up to Four Cores License","","",null,null,"","","","","",""]
["","","","","","","CCE162299 Licencias ArcGIS Server ArcGIS Utility Network Management for ArcGIS GIS Server Standard (Windows) Up to Four Cores License ","","",null,null,"","","","","",""]
["","","","","","","CCE162352 Licencias ArcGIS Server ArcGIS Utility Network Management for ArcGIS GIS Server Standard (Windows) Additional Core License ","","",null,null,"","","","","",""]
["","","","","","","CCE162293 Licencias ArcGIS Server ArcGIS Utility Network Management for ArcGIS GIS Server Advanced (Windows) Up to Four Cores License ","","",null,null,"","","","","",""]
["","","","","","","CCE160484 Licencias ArcGIS Server ArcGIS for Maritime for ArcGIS GIS Server Advanced (Windows) Up to Four Cores License","","",null,null,"","","","","",""]
["","","","","","","CCE160485 Licencias ArcGIS Server ArcGIS for Maritime for ArcGIS GIS Server Workgroup Advanced Maximum Four Cores License","","",null,null,"","","","","",""]
["","","","","","","CCE160486 Licencias ArcGIS Server ArcGIS for Maritime for ArcGIS GIS Server Standard (Windows) Up to Four Cores License","","",null,null,"","","","","",""]
["","","","","","","CCE160487 Licencias ArcGIS Server ArcGIS for Maritime for ArcGIS GIS Server Workgroup Standard Maximum Four Cores License","","",null,null,"","","","","",""]
["","","","","","","CCE161111 Licencias ArcGIS Server ArcGIS for Maritime for ArcGIS GIS Server Standard (Windows) Additional Core License","","",null,null,"","","","","",""]
["","","","","","","CCE161112 Licencias ArcGIS Server ArcGIS for Maritime for ArcGIS GIS Server Advanced (Windows) Additional Core License","","",null,null,"","","","","",""]
["","","","","","","CCE160583 Licencias ArcGIS Server Esri Roads and Highways Roadway Reporter for ArcGIS GIS Server Up to 50 Users License","","",null,null,"","","","","",""]
["","","","","","","CCE160582 Licencias ArcGIS Server Esri Roads and Highways Roadway Reporter for ArcGIS GIS Server Up to 250 Users License","","",null,null,"","","","","",""]
["","","","","","","CCE160584 Licencias ArcGIS Server Esri Roads and Highways Roadway Reporter for ArcGIS GIS Server Up to 500 Users License","","",null,null,"","","","","",""]
["","","","","","",null,"","",null,null,"","","","","",""]
["","","","","","",null,"","",null,null,"","","","","",""]
["","","","","","",null,"","",null,null,"","","","","",""]
["","","","","","",null,"","",null,null,"","","","","",""]
["","","","","","",null,"","",null,null,"","","","","",""]
["","","","","","",null,"","",null,null,"","","","","",""]
["","","","","","",null,"","",null,null,"","","","","",""]
["","","","","","",null,"","",null,null,"","","","","",""]
["","","","","","",null,"","",null,null,"","","","","",""]
["","","","","","",null,"","",null,null,"","","","","",""]
["","","","","","",null,"","",null,null,"","","","","",""]
["","","","","","",null,"","",null,null,"","","","","",""]
["","","","","","",null,"","",null,null,"","","","","",""]
["","","","","","",null,"","",null,null,"","","","","",""]

{"sheet":"solCotizacionCSVPorduc","index":5,"n_rows":24,"n_cols":45,"rows_kept":24,"cut":false,"hidden":true,"merged":[]}
["Solicitud","Registrar identificador","Â¿Enviar para aprobaciÃ³n?","LÃ­mite de recepciÃ³n de la sol.","JustificaciÃ³n","Nombre del departamento","Nota del comprador","Solicitado por (correo electrÃ³nico)","Solicitado por (inicio de sesiÃ³n)","Nombre de tarjeta de compras","Enviar a nombre","Enviar a id.","Enviar a nombre de","Enviar a calle 1","Enviar a calle 2","Enviar a ciudad","Enviar a estado","Enviar a cÃ³digo postal","Enviar a cÃ³digo de paÃ­s","Enviar a nombre de paÃ­s","Enviar a cÃ³digo de ubicaciÃ³n","N.I.T.","AgregaciÃ³n","Necesidad del bien o servicio*","Modalidad de selecciÃ³n","DestinaciÃ³n del gasto*","Origen de los    recursos*","Asociado al Acuerdo de Paz*","Supervisor de la Orden de Compra*","Correo electrÃ³nico del supervisor*","TelÃ©fono del      supervisor*","Vencimiento de la Orden de Compra*","Especificaciones adicionales de entrega","GravÃ¡menes      adicionales","IntegraciÃ³n con SIIF","CÃ³digo Unidad / Subunidad Ejecutora","Acepto tÃ©rminos y condiciones"]
["LÃ­nea de solicitudes","Registrar identificador","NÃºmero de lÃ­nea","NÃºmero de artÃ­culo del catÃ¡logo","Nombre de artÃ­culo del catÃ¡logo","Sin descripciÃ³n de artÃ­culo del catÃ¡logo","NÃºmero de parte del proveedor","Cantidad","Precio","LÃ­mite de recepciÃ³n de la sol.","Nombre del proveedor","NÃºmero del proveedor","CÃ³digo de sitio del proveedor","CÃ³digo de unidad de medida","Nombre de mercancÃ­a","Nombre del contrato","CÃ³digo de divisa","Etiquetas de activos","Nombre del Cuadro de cuentas","Nombre de la cuenta","CÃ³digo de cuentas","Segmento 1 de la cuenta","Segmento 2 de la cuenta","Segmento 3 de la cuenta","Segmento 4 de la cuenta","Segmento 5 de la cuenta","Segmento 6 de la cuenta","Segmento 7 de la cuenta","Segmento 8 de la cuenta","Segmento 9 de la cuenta","Segmento 10 de la cuenta","Segmento 11 de la cuenta","Segmento 12 de la cuenta","Segmento 13 de la cuenta","Segmento 14 de la cuenta","Segmento 15 de la cuenta","Segmento 16 de la cuenta","Segmento 18 de la cuenta","Segmento 19 de la cuenta","Segmento 20 de la cuenta","Importe de asignación de cuenta","Porcentaje de asignación de cuenta","Código del plazo de pago","Código del plazo de envío","Nombre de período de presupuesto"]
["AsignaciÃ³n de cuentas","Registrar identificador","NÃºmero de lÃ­nea","Monto","Porcentaje","Nombre de perÃ­odo de presupuesto","Nombre de la cuenta","CÃ³digo de cuentas","Segmento 1 de la cuenta","Segmento 2 de la cuenta","Segmento 3 de la cuenta","Segmento 4 de la cuenta","Segmento 5 de la cuenta","Segmento 6 de la cuenta","Segmento 7 de la cuenta","Segmento 8 de la cuenta","Segmento 9 de la cuenta","Segmento 10 de la cuenta","Segmento 11 de la cuenta","Segmento 12 de la cuenta","Segmento 13 de la cuenta","Segmento 14 de la cuenta","Segmento 15 de la cuenta","Segmento 16 de la cuenta","Segmento 17 de la cuenta","Segmento 18 de la cuenta","Segmento 19 de la cuenta","Segmento 20 de la cuenta"]
["Solicitud",1,"no",null,null,"Digite nombre de la entidad",null,"crear.entidad@colombiacompra.gov.co","digite.usuario",null,"Direccion",4394,null,null,null,null,null,null,null,null,null,null,"ArcGIS","Necesidad","SelecciÃ³n Abreviada AMP","Funcionamiento","Recursos propios","No","Digite supervisor","Digite correo","1900-01-01","2020-01-01",null,"GravÃ¡menes",null,"Yes"]
["LÃ­nea de solicitudes",1,1,null,"\"CCE157051 Programa Educativo Site License Acuerdo institucional de educaciÃ³n Small (500 Usuarios AcadÃ©micos / 10 Usuarios Administrativos)\"",null,null,1,"\"18728435,84\"",null,"ESRI COLOMBIA SAS",null,null,"AÃ‘O","ArcGIS - GeoreferenciaciÃ³n",null,"COP"]
["LÃ­nea de solicitudes",1,2,null,"\"CCE157080 Programa Educativo Site License Acuerdo institucional de educaciÃ³n Medium (1000 Usuarios AcadÃ©micos / 20 Usuarios Administrativos)\"",null,null,1,"\"37456871,69\"",null,"ESRI COLOMBIA SAS",null,null,"AÃ‘O","ArcGIS - GeoreferenciaciÃ³n",null,"COP"]
["LÃ­nea de solicitudes",1,3,null,"\"CCE157087 Programa Educativo Site License Acuerdo institucional de educaciÃ³n Large (5000 Usuarios AcadÃ©micos / 100 Usuarios Administrativos)\"",null,null,1,"\"93642179,22\"",null,"ESRI COLOMBIA SAS",null,null,"AÃ‘O","ArcGIS - GeoreferenciaciÃ³n",null,"COP"]
["LÃ­nea de solicitudes",1,4,null,"\"CCE160584 Licencias ArcGIS Server Esri Roads and Highways Roadway Reporter for ArcGIS GIS Server Up to 500 Users License\"",null,null,1,"\"179817574,86\"",null,"ESRI COLOMBIA SAS",null,null,"UND","ArcGIS - GeoreferenciaciÃ³n",null,"COP"]
["LÃ­nea de solicitudes",1,5,null,"\"CCE160582 Licencias ArcGIS Server Esri Roads and Highways Roadway Reporter for ArcGIS GIS Server Up to 250 Users License\"",null,null,1,"\"119878383,24\"",null,"ESRI COLOMBIA SAS",null,null,"UND","ArcGIS - GeoreferenciaciÃ³n",null,"COP"]
["LÃ­nea de solicitudes",1,6,null,"\"CCE160583 Licencias ArcGIS Server Esri Roads and Highways Roadway Reporter for ArcGIS GIS Server Up to 50 Users License\"",null,null,1,"\"59939628,45\"",null,"ESRI COLOMBIA SAS",null,null,"UND","ArcGIS - GeoreferenciaciÃ³n",null,"COP"]
["LÃ­nea de solicitudes",1,7,null,"\"CCE161112 Licencias ArcGIS Server ArcGIS for Maritime for ArcGIS GIS Server Advanced (Windows) Additional Core License\"",null,null,1,"\"7492398,95\"",null,"ESRI COLOMBIA SAS",null,null,"UND","ArcGIS - GeoreferenciaciÃ³n",null,"COP"]
["LÃ­nea de solicitudes",1,8,null,"\"CCE161111 Licencias ArcGIS Server ArcGIS for Maritime for ArcGIS GIS Server Standard (Windows) Additional Core License\"",null,null,1,"\"7492398,95\"",null,"ESRI COLOMBIA SAS",null,null,"UND","ArcGIS - GeoreferenciaciÃ³n",null,"COP"]
["LÃ­nea de solicitudes",1,9,null,"\"CCE160487 Licencias ArcGIS Server ArcGIS for Maritime for ArcGIS GIS Server Workgroup Standard Maximum Four Cores License\"",null,null,1,"\"14984797,91\"",null,"ESRI COLOMBIA SAS",null,null,"UND","ArcGIS - GeoreferenciaciÃ³n",null,"COP"]
["LÃ­nea de solicitudes",1,10,null,"\"CCE160486 Licencias ArcGIS Server ArcGIS for Maritime for ArcGIS GIS Server Standard (Windows) Up to Four Cores License\"",null,null,1,"\"29969595,81\"",null,"ESRI COLOMBIA SAS",null,null,"UND","ArcGIS - GeoreferenciaciÃ³n",null,"COP"]
["LÃ­nea de solicitudes",1,11,null,"\"CCE160485 Licencias ArcGIS Server ArcGIS for Maritime for ArcGIS GIS Server Workgroup Advanced Maximum Four Cores License\"",null,null,1,"\"14984797,91\"",null,"ESRI COLOMBIA SAS",null,null,"UND","ArcGIS - GeoreferenciaciÃ³n",null,"COP"]
["LÃ­nea de solicitudes",1,12,null,"\"CCE160484 Licencias ArcGIS Server ArcGIS for Maritime for ArcGIS GIS Server Advanced (Windows) Up to Four Cores License\"",null,null,1,"\"29969595,81\"",null,"ESRI COLOMBIA SAS",null,null,"UND","ArcGIS - GeoreferenciaciÃ³n",null,"COP"]
["LÃ­nea de solicitudes",1,13,null,"\"CCE130214 Licencias  ArcGIS Desktop ArcGIS for Maritime Bathymetry for Desktop Concurrent Use License\"",null,null,1,"\"14984797,91\"",null,"ESRI COLOMBIA SAS",null,null,"UND","ArcGIS - GeoreferenciaciÃ³n",null,"COP"]
["LÃ­nea de solicitudes",1,14,null,"\"CCE130941 Licencias  ArcGIS Desktop ArcGIS for Maritime Bathymetry for Desktop Bundle Concurrent Use License\"",null,null,1,"\"37461994,76\"",null,"ESRI COLOMBIA SAS",null,null,"UND","ArcGIS - GeoreferenciaciÃ³n",null,"COP"]
["LÃ­nea de solicitudes",1,15,null,"\"CCE121839 Licencias  ArcGIS Desktop ArcGIS For Maritime Charting for Desktop Concurrent Use License\"",null,null,1,"\"29969595,81\"",null,"ESRI COLOMBIA SAS",null,null,"UND","ArcGIS - GeoreferenciaciÃ³n",null,"COP"]
["LÃ­nea de solicitudes",1,16,null,"\"CCE121840 Licencias  ArcGIS Desktop ArcGIS For Maritime Charting for Desktop Single Use License\"",null,null,1,"\"29969595,81\"",null,"ESRI COLOMBIA SAS",null,null,"UND","ArcGIS - GeoreferenciaciÃ³n",null,"COP"]
["LÃ­nea de solicitudes",1,17,null,"\"CCE130215 Licencias  ArcGIS Desktop ArcGIS for Maritime Bathymetry for Desktop Single Use License\"",null,null,1,"\"14984797,91\"",null,"ESRI COLOMBIA SAS",null,null,"UND","ArcGIS - GeoreferenciaciÃ³n",null,"COP"]
["LÃ­nea de solicitudes",1,18,null,"\"CCE130940 Licencias  ArcGIS Desktop ArcGIS for Maritime Bathymetry for Desktop Bundle Single Use License\"",null,null,1,"\"37461994,76\"",null,"ESRI COLOMBIA SAS",null,null,"UND","ArcGIS - GeoreferenciaciÃ³n",null,"COP"]
["LÃ­nea de solicitudes",1,19,null,"\"CCE158381 Licencias  ArcGIS Desktop ArcGIS for Maritime Charting for Desktop Bundle Single Use License\"",null,null,1,"\"48550749,58\"",null,"ESRI COLOMBIA SAS",null,null,"UND","ArcGIS - GeoreferenciaciÃ³n",null,"COP"]
["LÃ­nea de solicitudes",1,20,null,"\"IVA ArcGIS\"",null,null,1,"\"0,00\"",null,"ESRI COLOMBIA SAS",null,null,"Und","ArcGIS - GeoreferenciaciÃ³n",null,"COP"]